Workbook

Sheet HOME
C1: 2024 Retrofit Rebate Application v1
C2: PNM Business Energy Efficiency Programs
A3: Why improve energy efficiency?
B4: Improves profitability by cutting operating costs | E4: Distinguishes your business as an energy efficiency advocate within our community | H4: Qualifies your project for rebates that can help cover upgrade costs
A6: Application Process | G6: Contact Our Team
A7: 1. | B7: Submit a Pre-Notification Application to reserve funding (if required). | G7: Address:
G8: 320 Gold Avenue SW, Suite 500 Albuquerque, NM 87102
A10: 2. | B10: Install qualified technology. | G10: Main Phone:
G11: (505) 938-9400
A12: 3. | B12: Complete, sign, and submit a Final Application with all required documentation within 6 months of project completion. | G12: Email:
G13: energyefficiency@pnm.com
G14: Website:
G15: www.pnmenergyefficiency.com
A16: 4. | B16: The incentive check will be sent 4 to 6 weeks after approval of the Final Application.

Sheet Applicant Info
D1: APPLICANT INFORMATION | J1: For office use only:
J2: Application # | K2: Revision #
A4: Application Type: | G4: Check ONE box below:
C6: Retrofit | H6: Pre-Notification | J6: Date | P6: =IF(G6>0,"Yes",) -> 0
H7: or | O7: New pre notification checkbox flag:
H8: Final Application | J8: Date | O8: FALSE
P9: FALSE
A10: Customer Information | O10: Multifacility checkbox flag:
A11: PNM Account Number where measures installed* | O11: FALSE
C13: This Application represents multiple accounts / premises | G13: Enter number of Accounts / Premises -------> | N13: =is ->  | O13: Lighting Measures flag: | P13: FALSE
C15: This project includes lighting measures as part of the scope | G15: 2. If yes: Complete Multi-Facility Worksheet -------> CLICK HERE
C16: Scope of Work is REQUIRED for Lighting measures ----> Click Here
A17: Building Type*
M18: Business Type | O18: Tax Status | Q18: State
A19: Name of Company* | G19: Name Exactly as it Appears on Your Utility Bill* | M19: Assembly | O19: Corporation (Inc, PC, etc.) | Q19: AL
M20: College/University | O20: Government Agency | Q20: AK
A21: Name of Contact Person* | G21: Title* | M21: Grocery | O21: Individual | Q21: AZ
M22: Heavy Industry | O22: Partnership | Q22: AR
A23: Telephone #* | G23: Fax # | M23: Hotel/Motel Common Areas | O23: Exempt | Q23: CA
A24: Email Address* | M24: Light Industry | Q24: CO
A25: Address Where Measures Installed* | M25: Medical | Q25: CT
A26: City Where Measures Installed* | G26: State* | I26: =IF(E26="","","NM") ->  | J26: Zip* | M26: Office | Q26: DE
A27: Mailing Address* | M27: Restaurant | Q27: FL
A28: City* | G28: State* | J28: Zip* | M28: Retail/Service | Q28: GA
A29: Taxpayer ID Number (SSN/FEIN)* | G29: Tax Status* | M29: K-12 School | Q29: HI
A30: Contractor Information | M30: Warehouse | Q30: ID
A31: Contracting Company* | M31: Hotel/Motel or Dwelling Unit | Q31: IL
A32: Contractor Name* | G32: Contractor Phone Number* | M32: Parking Garage | Q32: IN
A33: Contractor Email Address* | M33: Horticulture | Q33: IA
A34: Contractor Mailing Address* | M34: Miscellaneous | Q34: KS
A35: City* | G35: State* | J35: Zip* | Q35: KY
A36: Third Party Payment Release | Q36: LA
Q37: ME
C38: I request that the incentive check be sent to the third party below | H38: Check here if the third party payee is the contractor (Contractor must be a PNM Authorized Contractor to be eligible for third party payment) | Q38: MD
Q39: MA
A40: Name of Third Party* | Q40: MI
A41: Name of Third Party Contact Person* | G41: Title* | Q41: MN
Q42: MS
A43: Third Party Phone #* | G43: Fax # | Q43: MO
A44: Third Party Mailing Address* | Q44: MT
A45: Third Party City* | G45: State* | J45: Zip* | Q45: NE
A46: Third Party Email Address* | Q46: NV
A47: Third Party Taxpayer ID # (SSN/FEIN)* | G47: Tax Status* | Q47: NH
A48: Incentive Summary | Q48: NJ
A49: Total Incentive Requested | F49: Total Project Cost PRE-TAX * REQUIRED * | J49: =IF(AND(O8=TRUE,P9=TRUE),"Project Completion Date",IF(O8=TRUE, "Estimated Project Completion Date", "Project Completion Date")) -> Project Completion Date | Q49: NM
A50: =MIN(F65, F50*0.5,400000) -> 0 | Q50: NY
Q51: NC
A52: AGREEMENT | Q52: ND
A53: I understand that in the event funds are reserved based on a pre-notification, the payment of incentives will be based upon the Final Application and program terms and conditions, and that the PNM Business Energy Efficiency program is subject to change or cancellation at any time and without notice. PNM is not responsible for any lost, late, stolen, ineligible, illegible, misdirected or postage-due mail. All completed submissions become the property of PNM and will not be returned. PNM makes no guarantees about the availability of products or rebate forms. By participating in the PNM Business Energy Efficiency program, customers agree to waive any claims and release PNM from any liability for damages of any kind. Rebates are funded by a charge on PNM electric customer bills. | Q53: OH
A54: I have read and understand the program requirements, measure specifications, and Terms & Conditions set forth in this application and agree to abide by those requirements. Furthermore, I concur that I must meet all eligibility criteria in order to be paid under this program. | Q54: OK
A55: As an eligible customer, I verify that the signature below is my own and that the information is correct. I am requesting consideration for participation under this program. By signing this agreement I attest that I understand and agree to abide by all Program terms and conditions. | Q55: OR
A56: Customer Signature (PNM Customer) | H56: Third Party Signature | Q56: PA
F57: Please sign by hand or via DocuSign® | Q57: RI
A58: Print Customer Name | H58: Print Third Party Name | Q58: SC
Q59: SD
A60: Date | H60: Date | Q60: TN
Q61: TX
Q62: UT
Q63: VT
Q64: VA
B65: For Office Use Only | F65: =SUM(F66:F76) -> 0 | Q65: WA
B66: Interior Retrofits Incentive | F66: =Lighting!N21 -> 0 | Q66: WI
B67: LED Replacing HID Incentive | F67: =Lighting!J35 -> 0 | Q67: WV
B68: LED Replacing T5, T8, or T12 incentive | F68: =Lighting!J80 -> 0 | Q68: WY
B69: Existing LED Controls Incentive | F69: =Lighting!F125 -> 0
B70: HVAC Incentive | F70: =HVAC!H93 -> 0
B71: Food Service Incentive | F71: ='Food Service'!J42 -> 0
B72: Refrigeration Incentive | F72: =Refrigeration!I20 -> 0
B73: Pool Pumps Incentive | F73: ='Pool Pumps'!J10 -> 0
B74: Industrial Incentive | F74: =Refrigeration!I20 -> 0
B75: Miscellaneous Incentive | F75: =Miscellaneous!H44 -> 0
B76: Custom Incentive | F76: =Custom!I51 -> 0

Sheet Checklist
A1: APPLICATION CHECKLIST
A2: 1) Verify
B3: Submit application within 6 months of project completion, and include the following components:
A4: 2) Application Information Form
A5: CUSTOMER INFORMATION
B6: Customer name is the same as it appears on PNM bills.
B7: PNM account number is complete and accurate (NOTE: New Construction account information may not be available for Pre-Notification, but is required for the Final Application.)
B8: Taxpayer ID is complete and accurate.
B9: First-time customers/payees MUST submit IRS From W-9 with application.
A10: CONTRACTOR INFORMATION
B11: Provide complete contact information for project contractor. (We may need to contact your contractor to verify any project details.)
B12: If the job is completed by in-house staff, list Contractor as "done-in-house."
A13: INCENTIVE CHECK INFORMATION
B14: Complete contact information and taxpayer ID.
B15: Indicate whether the customer or a third party should receive the check. If a third party is to receive the check:
C16: Customer must check box indicating third party payment.
C17: Both the customer and third party must sign the Agreement Form.
A18: 3) Total Incentives Required
B19: Fill out the following sections:
C20: Total Project Cost (pre-tax)
C21: Project Completion Date
A22: 4) Terms & Conditions of Applications
B23: Customer must read and agree with the Terms & Conditions of the PNM Business Energy Efficiency Program.
B24: If a third party is applying on behalf of the customer, customer must sign the Agreement Form, allowing the third party to sign the application on the customer's behalf.
A25: 5) Incentive Worksheets
B26: Complete the incentive worksheet for each application measure (e.g., lighting, HVAC, refrigeration). Calculations are included where required (e.g., occupancy sensors).
B27: Ensure the measures installed meet the Specifications for those measures, per the Specifications section at the bottom of those measure tabs.
B28: Lighting Retrofit Scope of Work From is REQUIRED for all lighting projects (see the 'Lighting SOW' tab) to ensure faster inspection and verification of installed items.
A29: 6) Additional Documentation
A30: COST ESTIMATE / INVOICES
B31: For Pre-Notification, submit cost estimate or purchase order with your appllication.
B32: For Final application, submit invoices dated no more than 6 months prior to rebate application date.
B33: List the installation address, on invoices, cost estimate, or purchase order (must be in PNM service territory).
B34: Ensure invoice, cost estimate, or purchase order shows correct model numbers for each measure installed.
B35: Ensure invoices indicate payment by the customer (e.g., shows zero balance due, stamped paid, or check number, and paid date are included).
B36: Submit copies of cancelled checks. Total of cancelled checks must match total of invoices (Total Project Cost).
A37: SPECIFICATION SHEETS
B38: Provide a manufacturer's specification sheet for each measure installed (e.g., lamp, ballast, controls, refrigerator, freezer, ice machine, etc.)
B39: Ensure specification sheets include all program eligibility requirements for the measure (e.g., CRI of lamps, ballast factors, IPLV for AC units, etc.). Note: AHRI (Air-conditioning, Heating, and Refrigeration Institute) offers a helpful website for cooling specifications at www.ahridirectory.org.
A40: 7) Submit Application
B41: Submit completed application to PNM Business Energy Efficiency Program via email (preferred), fax, or postal mail. All contact information is on the HOME tab of this document.
B42: If submitting via email, pring a hard copy of the AGREEMENT section of the Applicant Info tab, sign, scan, and email. If using DocuSign® please attach both the completed Excel application and the signed Docusign® PDF. Preferred file type for the completed application is in Excel, while supporting documents are preferred as PDFs.
B43: Print a full, final hard copy of all pages of your application for your records.

Sheet Terms & Conditions
D1: TERMS & CONDITIONS

Sheet Multi-Facility
B1: LIGHTING MULTIPLE FACILITY WORKSHEET
A2: Use this worksheet ONLY if installing the SAME measure in facilities with different service addresses and unique account numbers.
A3: If a project encompasses multiple buildings at the same premise, this worksheet is not required.
A4: For official use only | B4: Pre-Notification Date: | C4: =IF(ISBLANK('Applicant Info'!$K$6)," ",'Applicant Info'!$K$6) ->  | D4: Final Application Date: | E4: =IF(ISBLANK('Applicant Info'!$K$8)," ",'Applicant Info'!$K$8) -> 
A5: Application # | B5: =IF('Applicant Info'!J3="","",'Applicant Info'!J3) ->  | C5: Business Name: | D5: =IF(ISBLANK('Applicant Info'!$A$20)," ",'Applicant Info'!$A$20) -> 
A6: Prepared by: | B6: =IF(ISBLANK('Applicant Info'!$A$22)," ",'Applicant Info'!$A$22) ->  | D6: Contact #: | E6: ='Applicant Info'!$D$23 -> 0
A8: Project Locations
A9: Service Address | B9: Account # | C9: Replacement Equipment Type 1 | D9: Replacement Equipment Type 2 | E9: Replacement Equipment Qty | F9: Existing Equipment Description | G9: Existing Equipment Qty
A35: Total | E35: =SUM(E10:E34) -> 0 | G35: =SUM(G10:G34) -> 0
A200: Measure Type 1
A201: Interior_Lighting
A202: Exterior_Lighting
A203: _24_7_Lighting
A204: Plug_Load_Controls
A205: Custom
A206: HVAC
A207: Envelope
A208: Refrigeration
A209: Food_Service_Equipment
A210: Motors
A211: VSDs
A213: Measure Type 1 | B213: Measure Type 2 | C213: Unit | D213: Incentive | F213: Measure Type 1
A214: 24/7 Lighting | B214: T8, T5 or LED Replacing HID Lamp Only | C214: Watts Reduced | D214: 0.25 | F214: Interior Lighting
A215: 24/7 Lighting | B215: T8, T5 or LED Replacing HID, Entire Fixture | C215: Watts Reduced | D215: 0.5 | F215: Exterior Lighting
A216: 24/7 Lighting | B216: T8, T5 or LED Replacing HID, Retrofit Kit | C216: Watts Reduced | D216: 0.3 | F216: 24/7 Lighting
A217: 24/7 Lighting | B217: LED Replacing T5, T8 or T12, Lamp Only | C217: Watts Reduced | D217: 0.25 | F217: HVAC
A218: 24/7 Lighting | B218: LED Replacing T5, T8 or T12, Entire Fixture | C218: Watts Reduced | D218: 0.5 | F218: Envelope
A219: 24/7 Lighting | B219: LED Replacing T5, T8 or T12, Retrofit Kit | C219: Watts Reduced | D219: 0.3 | F219: Refrigeration
A220: 24/7 Lighting | B220: Controls for Existing LED Fixtures | C220: Watts Controlled | D220: 0.5 | F220: Food Service Equipment
A221: Exterior Lighting | B221: T8, T5 or LED Replacing HID, Lamp Only | C221: Watts Reduced | D221: 0.2 | F221: Plug Load Controls
A222: Exterior Lighting | B222: T8, T5 or LED Replacing HID, Entire Fixture | C222: Watts Reduced | D222: 0.4 | F222: Motors
A223: Exterior Lighting | B223: T8, T5 or LED Replacing HID, Retrofit Kit | C223: Watts Reduced | D223: 0.25 | F223: VSDs
A224: Exterior Lighting | B224: LED Replacing T5, T8 or T12, Lamp Only | C224: Watts Reduced | D224: 0.2
A225: Exterior Lighting | B225: LED Replacing T5, T8 or T12, Entire Fixture | C225: Watts Reduced | D225: 0.4
A226: Exterior Lighting | B226: LED Replacing T5, T8 or T12, Retrofit Kit | C226: Watts Reduced | D226: 0.25
A227: Exterior Lighting | B227: Controls for Existing LED Fixtures | C227: Watts Controlled | D227: 0.4
A228: Interior Lighting | B228: 20W or less LED Lamp replacing Incandescent Lamp ≤ 100W | C228: Lamp | D228: 8
A229: Interior Lighting | B229: 20W or less LED Lamp replacing CFL Lamp ≤ 42W | C229: Lamp | D229: 4
A230: Interior Lighting | B230: Controls Occupancy Sensors | C230: Watts Controlled | D230: 0.12
A231: Interior Lighting | B231: Controls Daylighting Sensor Controls | C231: Watts Controlled | D231: 0.09
A232: Interior Lighting | B232: T8, T5 or LED Replacing HID, Lamp Only | C232: Watts Reduced | D232: 0.15
A233: Interior Lighting | B233: T8, T5 or LED Replacing HID, Entire Fixture | C233: Watts Reduced | D233: 0.3
A234: Interior Lighting | B234: T8, T5 or LED Replacing HID, Retrofit Kit | C234: Watts Reduced | D234: 0.2
A235: Interior Lighting | B235: LED Replacing T5, T8 or T12, Lamp Only | C235: Watts Reduced | D235: 0.15
A236: Interior Lighting | B236: LED Replacing T5, T8 or T12, Entire Fixture | C236: Watts Reduced | D236: 0.3
A237: Interior Lighting | B237: LED Replacing T5, T8 or T12, Retrofit Kit | C237: Watts Reduced | D237: 0.2
C239: Unit | D239: Incentive
A240: Envelope | B240: Window Film | C240: Sq. Ft. of Glazing | D240: 1.2
C242: Unit | D242: Incentive
A243: Refrigeration | B243: Strip Curtains on Walk-ins and Freezers | C243: Sq. Ft. | D243: 3
A244: Refrigeration | B244: Night Covers for Displays | C244: Lin. Ft. of Case | D244: 10
A245: Refrigeration | B245: EC Motor for Reach-in Refrigerator or Freezer Cases | C245: Motor | D245: 25
A246: Refrigeration | B246: Evaporator Fan Controller - Shade Pole Motor | C246: Motor | D246: 40
A247: Refrigeration | B247: Anti Sweat Heater Controls | C247: Lin. Ft. of Case | D247: 25
A248: Refrigeration | B248: LED Refrigeration Case Lighting | C248: Door | D248: 40
A249: Refrigeration | B249: ENERGY STAR® Solid Door Freezer | C249: Unit | D249: 100
A250: Refrigeration | B250: ENERGY STAR® Glass Door Freezer | C250: Unit | D250: 350
C252: Unit | D252: Incentive
A253: Food Service Equipment | B253: ENERGY STAR® Steam Cookers | C253: Unit | D253: 400
A254: Food Service Equipment | B254: Combination Oven | C254: Unit | D254: 800
A255: Food Service Equipment | B255: ENERGY STAR® Hot Holding Cabinet - 1/2 size | C255: Unit | D255: 200
A256: Food Service Equipment | B256: ENERGY STAR® Hot Holding Cabinet - 3/4 size | C256: Unit | D256: 300
A257: Food Service Equipment | B257: ENERGY STAR® Hot Holding Cabinet - Full size | C257: Unit | D257: 400
A258: Food Service Equipment | B258: ENERGY STAR® Beverage Vending Machine | C258: Unit | D258: 80
A259: Food Service Equipment | B259: ENERGY STAR® Commercial Vat Fryer | C259: Unit | D259: 225
A260: Food Service Equipment | B260: ENERGY STAR® Griddle | C260: Unit | D260: 125
C262: Unit | D262: Incentive
A263: High Efficiency Ice Makers | B263: 101-200 lbs/24 hours | C263: Unit | D263: 100
A264: High Efficiency Ice Makers | B264: 201-300 lbs/24 hours | C264: Unit | D264: 150
A265: High Efficiency Ice Makers | B265: 301-400 lbs/24 hours | C265: Unit | D265: 200
A266: High Efficiency Ice Makers | B266: 401-500 lbs/24 hours | C266: Unit | D266: 250
A267: High Efficiency Ice Makers | B267: 501-1000 lbs/24 hours | C267: Unit | D267: 300
A268: High Efficiency Ice Makers | B268: 1001-1500 lbs/24 hours | C268: Unit | D268: 350
A269: High Efficiency Ice Makers | B269: >1500 lbs/24 hours | C269: Unit | D269: 400
C271: Unit | D271: Incentive
A272: Plug Load Controls | B272: Beverage Vending Machine Control | C272: Unit | D272: Contact for offer
A273: Plug Load Controls | B273: Refrigerated Cooler Control | C273: Unit | D273: Contact for offer
A274: Plug Load Controls | B274: Snack Machine Control | C274: Unit | D274: Contact for offer
A275: Plug Load Controls | B275: Plug Load Occupancy Sensors | C275: Unit | D275: 25
C277: Unit | D277: Incentive
A278: Motors | B278: 1200 RPM - 1 HP - Open | C278: motor | D278: 1
A279: Motors | B279: 1200 RPM - 1 HP - Open | C279: motor | D279: 1.5
A280: Motors | B280: 1200 RPM - 1 HP - Open | C280: motor | D280: 2
A281: Motors | B281: 1200 RPM - 1 HP - Open | C281: motor | D281: 3
A282: Motors | B282: 1200 RPM - 1 HP - Open | C282: motor | D282: 4
A283: Motors | B283: 1200 RPM - 1 HP - Open | C283: motor | D283: 9
A284: Motors | B284: 1200 RPM - 1 HP - Open | C284: motor | D284: 10
A285: Motors | B285: 1200 RPM - 1 HP - Open | C285: motor | D285: 11
A286: Motors | B286: 1200 RPM - 1 HP - Open | C286: motor | D286: 12
A287: Motors | B287: 1200 RPM - 1 HP - Open | C287: motor | D287: 15
A288: Motors | B288: 1200 RPM - 1 HP - Open | C288: motor | D288: 17
A289: Motors | B289: 1200 RPM - 1 HP - Open | C289: motor | D289: 20
A290: Motors | B290: 1200 RPM - 1 HP - Open | C290: motor | D290: 24
A291: Motors | B291: 1200 RPM - 1 HP - Open | C291: motor | D291: 25
A292: Motors | B292: 1200 RPM - 1 HP - Open | C292: motor | D292: 30
A293: Motors | B293: 1200 RPM - 1 HP - Open | C293: motor | D293: 40
A294: Motors | B294: 1200 RPM - 1 HP - Open | C294: motor | D294: 50
A295: Motors | B295: 1200 RPM - 1 HP - Open | C295: motor | D295: 60
A296: Motors | B296: 1200 RPM - 1 HP - Open | C296: motor | D296: 75
A297: Motors | B297: 1200 RPM - 1 HP - Open | C297: motor | D297: 1
A298: Motors | B298: 1200 RPM - 1 HP - Open | C298: motor | D298: 1.5
A299: Motors | B299: 1200 RPM - 1 HP - Open | C299: motor | D299: 2
A300: Motors | B300: 1200 RPM - 1 HP - Open | C300: motor | D300: 3
A301: Motors | B301: 1200 RPM - 1 HP - Open | C301: motor | D301: 4
A302: Motors | B302: 1200 RPM - 1 HP - Open | C302: motor | D302: 9
A303: Motors | B303: 1200 RPM - 1 HP - Open | C303: motor | D303: 10
A304: Motors | B304: 1200 RPM - 1 HP - Open | C304: motor | D304: 11
A305: Motors | B305: 1200 RPM - 1 HP - Open | C305: motor | D305: 12
A306: Motors | B306: 1200 RPM - 1 HP - Open | C306: motor | D306: 15
A307: Motors | B307: 1200 RPM - 1 HP - Open | C307: motor | D307: 17
A308: Motors | B308: 1200 RPM - 1 HP - Open | C308: motor | D308: 20
A309: Motors | B309: 1200 RPM - 1 HP - Open | C309: motor | D309: 24
A310: Motors | B310: 1200 RPM - 1 HP - Open | C310: motor | D310: 25
A311: Motors | B311: 1200 RPM - 1 HP - Open | C311: motor | D311: 30
A312: Motors | B312: 1200 RPM - 1 HP - Open | C312: motor | D312: 40
A313: Motors | B313: 1200 RPM - 1 HP - Open | C313: motor | D313: 50
A314: Motors | B314: 1200 RPM - 1 HP - Open | C314: motor | D314: 60
A315: Motors | B315: 1200 RPM - 1 HP - Open | C315: motor | D315: 75
A316: Motors | B316: 1200 RPM - 1 HP - Open | C316: motor | D316: 1
A317: Motors | B317: 1200 RPM - 1 HP - Open | C317: motor | D317: 1.5
A318: Motors | B318: 1200 RPM - 1 HP - Open | C318: motor | D318: 2
A319: Motors | B319: 1200 RPM - 1 HP - Open | C319: motor | D319: 3
A320: Motors | B320: 1200 RPM - 1 HP - Open | C320: motor | D320: 4
A321: Motors | B321: 1200 RPM - 1 HP - Open | C321: motor | D321: 9
A322: Motors | B322: 1200 RPM - 1 HP - Open | C322: motor | D322: 10
A323: Motors | B323: 1200 RPM - 1 HP - Open | C323: motor | D323: 11
A324: Motors | B324: 1200 RPM - 1 HP - Open | C324: motor | D324: 12
A325: Motors | B325: 1200 RPM - 1 HP - Open | C325: motor | D325: 15
A326: Motors | B326: 1200 RPM - 1 HP - Open | C326: motor | D326: 17
A327: Motors | B327: 1200 RPM - 1 HP - Open | C327: motor | D327: 20
A328: Motors | B328: 1200 RPM - 1 HP - Open | C328: motor | D328: 24
A329: Motors | B329: 1200 RPM - 1 HP - Open | C329: motor | D329: 25
A330: Motors | B330: 1200 RPM - 1 HP - Open | C330: motor | D330: 30
A331: Motors | B331: 1200 RPM - 1 HP - Open | C331: motor | D331: 40
A332: Motors | B332: 1200 RPM - 1 HP - Open | C332: motor | D332: 50
A333: Motors | B333: 1200 RPM - 1 HP - Open | C333: motor | D333: 60
A334: Motors | B334: 1200 RPM - 1 HP - Open | C334: motor | D334: 75
A335: Motors | B335: 1200 RPM - 1 HP - Open | C335: motor | D335: 1
A336: Motors | B336: 1200 RPM - 1 HP - Open | C336: motor | D336: 1.5
A337: Motors | B337: 1200 RPM - 1 HP - Open | C337: motor | D337: 2
A338: Motors | B338: 1200 RPM - 1 HP - Open | C338: motor | D338: 3
A339: Motors | B339: 1200 RPM - 1 HP - Open | C339: motor | D339: 4
A340: Motors | B340: 1200 RPM - 1 HP - Open | C340: motor | D340: 9
A341: Motors | B341: 1200 RPM - 1 HP - Open | C341: motor | D341: 10
A342: Motors | B342: 1200 RPM - 1 HP - Open | C342: motor | D342: 11
A343: Motors | B343: 1200 RPM - 1 HP - Open | C343: motor | D343: 12
A344: Motors | B344: 1200 RPM - 1 HP - Open | C344: motor | D344: 15
A345: Motors | B345: 1200 RPM - 1 HP - Open | C345: motor | D345: 17
A346: Motors | B346: 1200 RPM - 1 HP - Open | C346: motor | D346: 20
A347: Motors | B347: 1200 RPM - 1 HP - Open | C347: motor | D347: 24
A348: Motors | B348: 1200 RPM - 1 HP - Open | C348: motor | D348: 25
A349: Motors | B349: 1200 RPM - 1 HP - Open | C349: motor | D349: 30
A350: Motors | B350: 1200 RPM - 1 HP - Open | C350: motor | D350: 40
A351: Motors | B351: 1200 RPM - 1 HP - Open | C351: motor | D351: 50
A352: Motors | B352: 1200 RPM - 1 HP - Open | C352: motor | D352: 60
A353: Motors | B353: 1200 RPM - 1 HP - Open | C353: motor | D353: 75
A354: Motors | B354: 1200 RPM - 1 HP - Open | C354: motor | D354: 1
A355: Motors | B355: 1200 RPM - 1 HP - Open | C355: motor | D355: 1.5
A356: Motors | B356: 1200 RPM - 1 HP - Open | C356: motor | D356: 2
A357: Motors | B357: 1200 RPM - 1 HP - Open | C357: motor | D357: 3
A358: Motors | B358: 1200 RPM - 1 HP - Open | C358: motor | D358: 4
A359: Motors | B359: 1200 RPM - 1 HP - Open | C359: motor | D359: 9
A360: Motors | B360: 1200 RPM - 1 HP - Open | C360: motor | D360: 10
A361: Motors | B361: 1200 RPM - 1 HP - Open | C361: motor | D361: 11
A362: Motors | B362: 1200 RPM - 1 HP - Open | C362: motor | D362: 12
A363: Motors | B363: 1200 RPM - 1 HP - Open | C363: motor | D363: 15
A364: Motors | B364: 1200 RPM - 1 HP - Open | C364: motor | D364: 17
A365: Motors | B365: 1200 RPM - 1 HP - Open | C365: motor | D365: 20
A366: Motors | B366: 1200 RPM - 1 HP - Open | C366: motor | D366: 24
A367: Motors | B367: 1200 RPM - 1 HP - Open | C367: motor | D367: 25
A368: Motors | B368: 1200 RPM - 1 HP - Open | C368: motor | D368: 30
A369: Motors | B369: 1200 RPM - 1 HP - Open | C369: motor | D369: 40
A370: Motors | B370: 1200 RPM - 1 HP - Open | C370: motor | D370: 50
A371: Motors | B371: 1200 RPM - 1 HP - Open | C371: motor | D371: 60
A372: Motors | B372: 1200 RPM - 1 HP - Open | C372: motor | D372: 75
A373: Motors | B373: 1200 RPM - 1 HP - Open | C373: motor | D373: 1
A374: Motors | B374: 1200 RPM - 1 HP - Open | C374: motor | D374: 1.5
A375: Motors | B375: 1200 RPM - 1 HP - Open | C375: motor | D375: 2
A376: Motors | B376: 1200 RPM - 1 HP - Open | C376: motor | D376: 3
A377: Motors | B377: 1200 RPM - 1 HP - Open | C377: motor | D377: 4
A378: Motors | B378: 1200 RPM - 1 HP - Open | C378: motor | D378: 9
A379: Motors | B379: 1200 RPM - 1 HP - Open | C379: motor | D379: 10
A380: Motors | B380: 1200 RPM - 1 HP - Open | C380: motor | D380: 11
A381: Motors | B381: 1200 RPM - 1 HP - Open | C381: motor | D381: 12
A382: Motors | B382: 1200 RPM - 1 HP - Open | C382: motor | D382: 15
A383: Motors | B383: 1200 RPM - 1 HP - Open | C383: motor | D383: 17
A384: Motors | B384: 1200 RPM - 1 HP - Open | C384: motor | D384: 20
A385: Motors | B385: 1200 RPM - 1 HP - Open | C385: motor | D385: 24
A386: Motors | B386: 1200 RPM - 1 HP - Open | C386: motor | D386: 25
A387: Motors | B387: 1200 RPM - 1 HP - Open | C387: motor | D387: 30
A388: Motors | B388: 1200 RPM - 1 HP - Open | C388: motor | D388: 40
A389: Motors | B389: 1200 RPM - 1 HP - Open | C389: motor | D389: 50
A390: Motors | B390: 1200 RPM - 1 HP - Open | C390: motor | D390: 60
A391: Motors | B391: 1200 RPM - 1 HP - Open | C391: motor | D391: 75
C394: Unit | D394: Incentive
A395: VSDs | B395: VSD Size (HP) | C395: Hp | D395: 50
C397: Unit | D397: Incentive
A398: HVAC | B398: HVAC Units, contact for offer | C398: Unit | D398: Contact for offer
C400: Unit | D400: Incentive
A401: Custom | B401: Per kWh | C401: kWh | D401: 0.075

Sheet Lighting SOW
A1: App # (office use only): | B1: =IF('Applicant Info'!J3="","",'Applicant Info'!J3) ->  | C1: Please complete all info in the white spaces below:
A2: Business Name: | B2: =IF('Applicant Info'!A20="","",'Applicant Info'!A20) ->  | F2: Date: | G2: =IF('Applicant Info'!K6="", IF('Applicant Info'!K8="","",'Applicant Info'!K8),'Applicant Info'!K6) -> 
A3: Prepared by: | F3: Phone: | G3: =IF('Applicant Info'!D23="","",'Applicant Info'!D23) -> 
A4: Address: | B4: =IF('Applicant Info'!E25="","",'Applicant Info'!E25 &" "&'Applicant Info'!E26 &" " &'Applicant Info'!I26 &" "&'Applicant Info'!K26) ->  | F4: Email: | G4: ='Applicant Info'!$E$24 -> 0 | R4: Watts controlled (Interior ONLY) | T4: Annual Savings*
A5: Lighting Scope of Work / Building Audit Form | R5: Occupancy | S5: Daylighting
A6: Existing Lighting | J6: Proposed Lighting | R6: =SUMIF(R8:R181,"YES",Q8:Q181) -> 0 | S6: =SUMIF(S8:S181,"YES",Q8:Q181) -> 0 | T6: *calculated per figures entered on this form; savings are NOT guaranteed
A7: LOCATION Description | B7: Fixture Type | C7: Lamp Size (Ex: F34T12 or 400MH) | D7: Ballast | E7: Lamps per Fixture | F7: Watts per Fixture | G7: Fixture Qty | H7: Total W | I7: Operating Hours per Week | J7: New or Retrofit | K7: Fixture Type | L7: DLC or Energy Star Qualified? | M7: Fixture or Lamp Model Number | N7: Lamps per Fixture | O7: Watts per Fixture | P7: Fixture Qty | Q7: Total W | R7: Occupancy Control? (Y / N) | S7: Daylighting Controls? (Y / N) | T7: Savings (W) | U7: Savings (kWh)
H8: =IF(A8="","",G8*F8) ->  | Q8: =IF(M8="","",O8*P8) ->  | T8: =IF(L8="DNQ", "DNQ",IF(OR(H8="",Q8=""),"",H8-Q8)) ->  | U8: =IF(L8="DNQ", "DNQ", IF(OR(I8="",T8=""),"",I8*T8*52/1000)) -> 
T9: =IF(L9="DNQ", "DNQ",IF(OR(H9="",Q9=""),"",H9-Q9)) ->  | U9: =IF(L9="DNQ", "DNQ", IF(OR(I9="",T9=""),"",I9*T9*52/1000)) -> 
H73: =IF(A73="","",G73*F73) ->  | Q73: =IF(M73="","",O73*P73) ->  | T73: =IF(L73="DNQ", "DNQ",IF(OR(H73="",Q73=""),"",H73-Q73)) ->  | U73: =IF(L73="DNQ", "DNQ", IF(OR(I73="",T73=""),"",I73*T73*52/1000)) -> 
H79: =IF(A79="","",G79*F79) ->  | Q79: =IF(M79="","",O79*P79) -> 
T137: =IF(L137="DNQ", "DNQ",IF(OR(H137="",Q137=""),"",H137-Q137)) ->  | U137: =IF(L137="DNQ", "DNQ", IF(OR(I137="",T137=""),"",I137*T137*52/1000)) -> 
H143: =IF(A143="","",G143*F143) ->  | Q143: =IF(M143="","",O143*P143) -> 
A185: Type | C185: Ballast | E185: Lamps | G185: New or Retro | I185: Control | J185: DLC Energy Star Qualified?
J186: DLC
A187: Incandescent | C187: Magnetic | E187: 1 | G187: New Fixture | I187: YES | J187: EnergyStar
A188: Fluorescent | C188: Electronic | E188: 2 | G188: Retrofit | I188: NO | J188: DNQ
A189: LED Screw-in | C189: Pulse-start | E189: 3 | G189: Remove
A190: Screw-in CFL | C190: N/A | E190: 4
A191: Hardwired CFL | E191: 5
A192: 2x4 Troffer | E192: 6
A193: 2x2 Troffer | E193: 7
A194: 2' Strip | E194: 8
A195: 4' Strip | E195: 9
A196: 6' Strip | E196: 10
A197: 8' Strip
A198: Wallpack
A199: Pole
A200: HID
A201: Exit INC
A202: Exit LED
A203: LED Lamp
A204: LED Fixture
A205: LED Sign
A206: HighBay T8
A207: HighBay T5
A208: Other
A211: Type2
A212: LED Screw-in
A213: LED 2x4 Troffer
A214: LED 2x2 Troffer
A215: 2' LED Strip
A216: 4' LED Strip
A217: 6' LED Strip
A218: 8' LED Strip
A219: LED Wallpack
A220: LED Pole Fixture
A221: LED Sign
A222: Other

Sheet Lighting
D1: RETROFIT LIGHTING INCENTIVES
A2: Click a link at right to jump to that section: | D2: 1. Interior Retrofits
D3: 2. LED Replacing HID (Lamps, Fixtures & Retrofit kits)
D4: 3. LED Replacing T5, T8 or T12 (Lamps, Fixtures & Retrofit Kits)
D5: 4. Controls for Existing LED Fixtures
D6: 5. Specifications for this section
A7: Applicant: fill in gray fields
A8: IMPORTANT NOTICE: Only qualified LED lighting is eligible for a rebate. No fluorescent replacements are eligible for rebates.
A9: 1. Interior Retrofits
A10: Equipment Type* | J10: Incentive | K10: Unit | M10: # of Units | N10: Incentive Subtotal
A11: LED Lighting
A12: 20W or less LED Lamp replacing Incandescent Lamp ≤ 100W | J12: 2 | K12: Lamp | N12: =J12*M12 -> 0
A13: 20W or less LED Lamp replacing CFL Lamp ≤ 42W | J13: 1 | K13: Lamp | N13: =J13*M13 -> 0
A14: LED Exit Signs replacing Incandescent Exit Signs | J14: 10 | K14: LED Sign | N14: 0
A15: LED Exit Signs replacing CFL Exit Signs | J15: 10 | K15: LED Sign | N15: 0
A16: LED Open Signs | J16: 20 | K16: LED Sign | N16: 0
A17: Interior Lighting Controls (Refer to "Lighting SOW" Columns R and S)
A18: Occupancy Sensors | J18: 0.16 | K18: Watts Controlled | N18: =J18*M18 -> 0
A19: Daylighting Sensor Controls | J19: 0.1 | K19: Watts Controlled | N19: =J19*M19 -> 0
A21: Total Interior Retrofits Incentive | N21: =SUM(N12:N19) -> 0
A23: *Please provide a description of the retrofit, including any lighting layouts, fixture counts or calculation spreadsheets.
A24: ** A dwelling unit is defined as an interior space that is residential in nature (i.e. hotel rooms, dormitories, retirement and senior
A25: living communities, etc.). For Multi-family apartments apply through the PNM Multifamily Program.
A26: ***Watts Reduced = old connected wattage - new connected wattage
A28: 2. LED Replacing HID (Lamps, Fixtures & Retrofit kits)
B29: Type of Retrofit | D29: Fixture Replacing Fixture | F29: Lamp Replacing Lamp | H29: Fixture to Retrofit Kit | J29: Total Incentive
D30: Incentive | E30: Watts Reduced | F30: Incentive | G30: Watts Reduced | H30: Incentive | I30: Watts Reduced | Q30: Recommend increasing to these levels
B31: Interior | D31: 0.42 | E31: =SUMIFS($N$38:$N$52,$B$38:$B$52,$B31,$C$38:$C$52,D$29)-SUMIFS($N$56:$N$70,$B$56:$B$70,$B31,$C$56:$C$70,D$29) -> 0 | F31: 0.21 | G31: =SUMIFS($N$38:$N$52,$B$38:$B$52,$B31,$C$38:$C$52,F$29)-SUMIFS($N$56:$N$70,$B$56:$B$70,$B31,$C$56:$C$70,F$29) -> 0 | H31: 0.32 | I31: =SUMIFS($N$38:$N$52,$B$38:$B$52,$B31,$C$38:$C$52,H$29)-SUMIFS($N$56:$N$70,$B$56:$B$70,$B31,$C$56:$C$70,H$29) -> 0 | J31: =IF(OR(D31*E31+F31*G31+H31*I31<0,$N$71="",$N$71=0), 0, D31*E31+F31*G31+H31*I31) -> 0
B32: Interior 18 Hour | D32: 0.9 | E32: =SUMIFS($N$38:$N$52,$B$38:$B$52,$B32,$C$38:$C$52,D$29)-SUMIFS($N$56:$N$70,$B$56:$B$70,$B32,$C$56:$C$70,D$29) -> 0 | F32: 0.48 | G32: =SUMIFS($N$38:$N$52,$B$38:$B$52,$B32,$C$38:$C$52,F$29)-SUMIFS($N$56:$N$70,$B$56:$B$70,$B32,$C$56:$C$70,F$29) -> 0 | H32: 0.63 | I32: =SUMIFS($N$38:$N$52,$B$38:$B$52,$B32,$C$38:$C$52,H$29)-SUMIFS($N$56:$N$70,$B$56:$B$70,$B32,$C$56:$C$70,H$29) -> 0 | J32: =IF(OR(D32*E32+F32*G32+H32*I32<0,$N$71="",$N$71=0), 0, D32*E32+F32*G32+H32*I32) -> 0
B33: Exterior | D33: 0.53 | E33: =SUMIFS($N$38:$N$52,$B$38:$B$52,$B33,$C$38:$C$52,D$29)-SUMIFS($N$56:$N$70,$B$56:$B$70,$B33,$C$56:$C$70,D$29) -> 0 | F33: 0.27 | G33: =SUMIFS($N$38:$N$52,$B$38:$B$52,$B33,$C$38:$C$52,F$29)-SUMIFS($N$56:$N$70,$B$56:$B$70,$B33,$C$56:$C$70,F$29) -> 0 | H33: 0.37 | I33: =SUMIFS($N$38:$N$52,$B$38:$B$52,$B33,$C$38:$C$52,H$29)-SUMIFS($N$56:$N$70,$B$56:$B$70,$B33,$C$56:$C$70,H$29) -> 0 | J33: =IF(OR(D33*E33+F33*G33+H33*I33<0,$N$71="",$N$71=0), 0, D33*E33+F33*G33+H33*I33) -> 0 | Q33: =J35 -> 0
B34: 24 Hour/Garage/3-Shift | D34: 1.26 | E34: =SUMIFS($N$38:$N$52,$B$38:$B$52,$B34,$C$38:$C$52,D$29)-SUMIFS($N$56:$N$70,$B$56:$B$70,$B34,$C$56:$C$70,D$29) -> 0 | F34: 0.63 | G34: =SUMIFS($N$38:$N$52,$B$38:$B$52,$B34,$C$38:$C$52,F$29)-SUMIFS($N$56:$N$70,$B$56:$B$70,$B34,$C$56:$C$70,F$29) -> 0 | H34: 0.84 | I34: =SUMIFS($N$38:$N$52,$B$38:$B$52,$B34,$C$38:$C$52,H$29)-SUMIFS($N$56:$N$70,$B$56:$B$70,$B34,$C$56:$C$70,H$29) -> 0 | J34: =IF(OR(D34*E34+F34*G34+H34*I34<0,$N$71="",$N$71=0), 0, D34*E34+F34*G34+H34*I34) -> 0
B35: Total High Efficiency LED replacing HID Incentive | J35: =SUM(J31:K34) -> 0
A36: Existing equipment: HID fixtures and/or lamps being removed
A37: # | B37: Measure Type | C37: Retrofit Type | D37: Fixture Type | F37: Ballast Type | H37: Description | J37: Lamps/ Fixture | K37: Lamp Wattage | L37: Fixture Quantity | M37: Fixture Wattage | N37: Base Watts
A38: 1 | J38: =IF($H38="","",VLOOKUP($H38,$BB:$BF,3,FALSE)) ->  | K38: =IF($H38="","",VLOOKUP($H38,$BB:$BF,4,FALSE)) ->  | M38: =IF($H38="","",VLOOKUP($H38,$BB:$BF,5,FALSE)) ->  | N38: =IF((IF($H38="","",M38*L38))=0,"Missing Value",(IF($H38="","",M38*L38))) -> 
A39: 2
A40: 3
A41: 4
A42: 5
A43: 6
A44: 7 | N44: =IF((IF($H44="","",M44*L44))=0,"Missing Value",(IF($H44="","",M44*L44))) -> 
A45: 8
A46: 9
A47: 10
A48: 11
A49: 12
A50: 13
A51: 14
A52: 15
A53: Subtotal HID Base Case Wattage | N53: =IF(SUM(N38:N52)=0,"",SUM(N38:N52)) -> 
A54: Replacement equipment: New LED lamps, fixtures, or fixture retrofit kit being installed
A55: # | B55: Measure Type | C55: Retrofit Type | D55: Fixture Type | F55: Fixture or Ballast Sub Type | H55: Description (type in model number) | J55: Lamps/ Fixture | K55: Lamp Wattage | L55: Fixture Quantity | M55: Fixture Wattage | N55: Installed Watts
A56: 1 | M56: =IF($H56="","",J56*K56) ->  | N56: =IF((IF($H56="","",M56*L56))=0,"Missing Value",(IF($H56="","",M56*L56))) -> 
A57: 2
A58: 3
A59: 4
A60: 5
A61: 6
A62: 7
A63: 8
A64: 9 | M64: =IF($H64="","",J64*K64) ->  | N64: =IF((IF($H64="","",M64*L64))=0,"Missing Value",(IF($H64="","",M64*L64))) -> 
A65: 10
A66: 11
A67: 12
A68: 13
A69: 14
A70: 15 | R70: Ranges and lookup values for calculated lighting tables. Use caution when editing ranges that are used for data validation lists
A71: Subtotal Installed LED Fixture Wattage | N71: =IF(SUM(N56:N70)=0,"",SUM(N56:N70)) ->  | R71: (tips: no symbols allowed, no spaces allowed unless removed with substitute function, any change to a range could delete it, so it must be re-created, use ctrl shift F3 to create a range, range name must begin and end with a letter and no spaces)
A72: 3. LED Replacing T5, T8 or T12 (Lamps, Fixtures & Retrofit Kits) | R72: TABLE 1: EXISTING HID
R73: Measure Type | T73: 1. Retrofit Type | Y73: 2. Fixture Type | AD73: 3. Ballast Type | AN73: 4. Description | BA73: 5. Description lookup (all measures)
B74: Type of Retrofit | D74: Fixture Replacing Fixture | F74: Lamp Replacing Lamp | H74: Fixture to Retrofit Kit | J74: Total Incentive | Y74: HIDFixturereplacingFixture | Z74: HIDLampreplacingLamp | AA74: HIDFixturetoRetrofitKit | AD74: CFL | AE74: HPS | AF74: I/H | AG74: MV | AH74: MH | BA74: TYPE | BB74: DESCRIPTION | BC74: Ballast Type | BD74: LAMP / FIXTURE | BE74: WATT / LAMP | BF74: WATT / FIXTURE
D75: Incentive | E75: Watts Reduced | F75: Incentive | G75: Watts Reduced | H75: Incentive | I75: Watts Reduced | R75: MeasureType | T75: 1. Retrofit Type | Y75: CFL | Z75: CFL | AA75: CFL | AD75: HIDCFL | AE75: HIDHighPressureSodium | AF75: HIDIncanorHalogen | AG75: HIDMercuryVapor | AH75: HIDMetalHalide | AN75: HighPressureSodiumMagnetic | AO75: IncanorHalogenNone | AQ75: MercuryVaporMagnetic | AR75: MetalHalideElectronic | AS75: MetalHalideMagnetic | AT75: FixturetoRetrofitKitFixturetoRetrofitKit | AU75: CFLNone | BA75: CFL | BB75: 25 Watt Compact Fluorescent | BC75: None | BD75: 1 | BE75: 25 | BF75: 25
B76: Interior | D76: 0.42 | E76: =SUMIFS($N$83:$N$97,$B$83:$B$97,$B76,$C$83:$C$97,D$74)-SUMIFS($N$101:$N$115,$B$101:$B$115,$B76,$C$101:$C$115,D$74) -> 0 | F76: 0.21 | G76: =SUMIFS($N$83:$N$97,$B$83:$B$97,$B76,$C$83:$C$97,F$74)-SUMIFS($N$101:$N$115,$B$101:$B$115,$B76,$C$101:$C$115,F$74) -> 0 | H76: 0.32 | I76: =SUMIFS($N$83:$N$97,$B$83:$B$97,$B76,$C$83:$C$97,H$74)-SUMIFS($N$101:$N$115,$B$101:$B$115,$B76,$C$101:$C$115,H$74) -> 0 | J76: =IF(OR($D76*$E76+$F76*$G76+$H76*$I76<0,$N$116="",$N$116=0), 0,$D76* $E76+$F76*$G76+$H76*$I76) -> 0 | R76: Interior | T76: Fixture replacing Fixture | Y76: High Pressure Sodium | Z76: High Pressure Sodium | AA76: High Pressure Sodium | AD76: None | AE76: Magnetic | AF76: None | AG76: Magnetic | AH76: Magnetic | AN76: 35 Watt HPS Lamp, Magnetic ballast | AO76: 110 Watt Incandescent or Halogen Lamp | AQ76: 40 Watt MV Lamp | AR76: 20 Watt MH Lamp, Electronic Ballast | AS76: 32 Watt MH Lamp, Magnetic ballast | AT76: Fixture to Retrofit Kit | AU76: 25 Watt Compact Fluorescent | BA76: CFL | BB76: 30 Watt Compact Fluorescent | BC76: None | BD76: 1 | BE76: 30 | BF76: 30
B77: Interior 18 Hour | D77: 0.9 | E77: =SUMIFS($N$83:$N$97,$B$83:$B$97,$B77,$C$83:$C$97,D$74)-SUMIFS($N$101:$N$115,$B$101:$B$115,$B77,$C$101:$C$115,D$74) -> 0 | F77: 0.48 | G77: =SUMIFS($N$83:$N$97,$B$83:$B$97,$B77,$C$83:$C$97,F$74)-SUMIFS($N$101:$N$115,$B$101:$B$115,$B77,$C$101:$C$115,F$74) -> 0 | H77: 0.63 | I77: =SUMIFS($N$83:$N$97,$B$83:$B$97,$B77,$C$83:$C$97,H$74)-SUMIFS($N$101:$N$115,$B$101:$B$115,$B77,$C$101:$C$115,H$74) -> 0 | J77: =IF(OR($D77*$E77+$F77*$G77+$H77*$I77<0,$N$116="",$N$116=0), 0,$D77* $E77+$F77*$G77+$H77*$I77) -> 0 | Q77: =J80 -> 0 | R77: Interior 18 Hour | T77: Lamp replacing Lamp | Y77: Incan or Halogen | Z77: Incan or Halogen | AA77: Incan or Halogen | AH77: Electronic | AN77: 50 Watt HPS Lamp, Magnetic ballast | AO77: 116 Watt Incandescent or Halogen Lamp | AQ77: 50 Watt MV Lamp | AR77: 22 Watt MH Lamp, Electronic Ballast | AS77: 39 Watt MH Lamp, Magnetic ballast | AU77: 30 Watt Compact Fluorescent | BA77: CFL | BB77: 35 Watt Compact Fluorescent | BC77: None | BD77: 1 | BE77: 35 | BF77: 35
B78: Exterior | D78: 0.53 | E78: =SUMIFS($N$83:$N$97,$B$83:$B$97,$B78,$C$83:$C$97,D$74)-SUMIFS($N$101:$N$115,$B$101:$B$115,$B78,$C$101:$C$115,D$74) -> 0 | F78: 0.27 | G78: =SUMIFS($N$83:$N$97,$B$83:$B$97,$B78,$C$83:$C$97,F$74)-SUMIFS($N$101:$N$115,$B$101:$B$115,$B78,$C$101:$C$115,F$74) -> 0 | H78: 0.37 | I78: =SUMIFS($N$83:$N$97,$B$83:$B$97,$B78,$C$83:$C$97,H$74)-SUMIFS($N$101:$N$115,$B$101:$B$115,$B78,$C$101:$C$115,H$74) -> 0 | J78: =IF(OR($D78*$E78+$F78*$G78+$H78*$I78<0,$N$116="",$N$116=0), 0,$D78* $E78+$F78*$G78+$H78*$I78) -> 0 | R78: Exterior | T78: Fixture to Retrofit Kit | Y78: Mercury Vapor | Z78: Mercury Vapor | AA78: Mercury Vapor | AN78: 70 Watt HPS Lamp, Magnetic ballast | AO78: 120 Watt Incandescent or Halogen Lamp | AQ78: 75 Watt MV Lamp | AR78: 39 Watt MH Lamp, Electronic Ballast | AS78: 50 Watt MH Lamp, Magnetic ballast | AU78: 35 Watt Compact Fluorescent | BA78: CFL | BB78: 40 Watt Compact Fluorescent | BC78: None | BD78: 1 | BE78: 40 | BF78: 40
B79: 24 Hour/Garage/3-Shift | D79: 1.26 | E79: =SUMIFS($N$83:$N$97,$B$83:$B$97,$B79,$C$83:$C$97,D$74)-SUMIFS($N$101:$N$115,$B$101:$B$115,$B79,$C$101:$C$115,D$74) -> 0 | F79: 0.63 | G79: =SUMIFS($N$83:$N$97,$B$83:$B$97,$B79,$C$83:$C$97,F$74)-SUMIFS($N$101:$N$115,$B$101:$B$115,$B79,$C$101:$C$115,F$74) -> 0 | H79: 0.84 | I79: =SUMIFS($N$83:$N$97,$B$83:$B$97,$B79,$C$83:$C$97,H$74)-SUMIFS($N$101:$N$115,$B$101:$B$115,$B79,$C$101:$C$115,H$74) -> 0 | J79: =IF(OR($D79*$E79+$F79*$G79+$H79*$I79<0,$N$116="",$N$116=0), 0,$D79* $E79+$F79*$G79+$H79*$I79) -> 0 | R79: 24 Hour/Garage/3-Shift | Y79: Metal Halide | Z79: Metal Halide | AA79: Metal Halide | AN79: 100 Watt HPS Lamp, Magnetic ballast | AO79: 125 Watt Incandescent or Halogen Lamp | AQ79: 100 Watt MV Lamp | AR79: 50 Watt MH Lamp, Electronic Ballast | AS79: 70 Watt MH Lamp, Magnetic ballast | AU79: 40 Watt Compact Fluorescent | BA79: CFL | BB79: 45 Watt Compact Fluorescent | BC79: None | BD79: 1 | BE79: 45 | BF79: 45
B80: Total High Efficiency LED Replacing T5, T8, or T12 Incentive | J80: =SUM(J76:K79) -> 0 | AN80: 150 Watt HPS Lamp, Magnetic ballast | AO80: 130 Watt Incandescent or Halogen Lamp | AQ80: 160 Watt MV self-ballasted Lamp | AR80: 70 Watt MH Lamp, Electronic Ballast | AS80: 100 Watt MH Lamp, Magnetic ballast | AU80: 45 Watt Compact Fluorescent | BA80: CFL | BB80: 50 Watt Compact Fluorescent | BC80: None | BD80: 1 | BE80: 50 | BF80: 50
A81: Existing equipment: T5, T8 or T12 fixtures and/or lamps being removed | AN81: 200 Watt HPS Lamp, Magnetic ballast | AO81: 135 Watt Incandescent or Halogen Lamp | AQ81: 175 Watt MV Lamp | AR81: 100 Watt MH Lamp, Electronic Ballast | AS81: 125 Watt MH Lamp, Magnetic ballast | AU81: 50 Watt Compact Fluorescent | BA81: CFL | BB81: 55 Watt Compact Fluorescent | BC81: None | BD81: 1 | BE81: 55 | BF81: 55
A82: # | B82: Measure Type | C82: Retrofit Type | D82: Fixture Type | F82: Ballast Type | H82: Description | J82: Lamps/ Fixture | K82: Lamp Wattage | L82: Fixture Quantity | M82: Fixture Wattage | N82: Base Watts | AN82: 250 Watt HPS Lamp, Magnetic ballast | AO82: 150 Watt Incandescent or Halogen Lamp | AQ82: 250 Watt MV Lamp | AR82: 150 Watt MH Lamp, Electronic Ballast | AS82: 150 Watt MH Lamp, Magnetic Ballast | AU82: 55 Watt Compact Fluorescent | BA82: CFL | BB82: 60 Watt Compact Fluorescent | BC82: None | BD82: 1 | BE82: 60 | BF82: 60
A83: 1 | J83: =IF($H83="","",VLOOKUP($H83,$BB:$BF,3,FALSE)) ->  | K83: =IF($H83="","",VLOOKUP($H83,$BB:$BF,4,FALSE)) ->  | M83: =IF($H83="","",VLOOKUP($H83,$BB:$BF,5,FALSE)) ->  | N83: =IF((IF($H83="","",M83*L83))=0,"Missing Value",(IF($H83="","",M83*L83))) ->  | AN83: 310 Watt HPS Lamp, Magnetic ballast | AO83: 160 Watt Incandescent or Halogen Lamp | AQ83: 400 Watt MV Lamp | AR83: 175 Watt MH Lamp, Electronic Ballast | AS83: 175 Watt MH Lamp, Magnetic ballast | AU83: 60 Watt Compact Fluorescent | BA83: CFL | BB83: 65 Watt Compact Fluorescent | BC83: None | BD83: 1 | BE83: 65 | BF83: 65
A84: 2 | AN84: 360 Watt HPS Lamp, Magnetic ballast | AO84: 170 Watt Incandescent or Halogen Lamp | AQ84: 700 Watt MV Lamp | AR84: 200 Watt MH Lamp, Electronic Ballast | AS84: 200 Watt MH Lamp, Magnetic ballast | AU84: 65 Watt Compact Fluorescent | BA84: CFL | BB84: 70 Watt Compact Fluorescent | BC84: None | BD84: 1 | BE84: 70 | BF84: 70
A85: 3 | AN85: 400 Watt HPS Lamp, Magnetic ballast | AO85: 200 Watt Incandescent or Halogen Lamp | AQ85: 1000 Watt MV Lamp | AR85: 250 Watt MH Lamp, Electronic Ballast | AS85: 250 Watt MH Lamp, Magnetic ballast | AU85: 70 Watt Compact Fluorescent | BA85: CFL | BB85: 75 Watt Compact Fluorescent | BC85: None | BD85: 1 | BE85: 75 | BF85: 75
A86: 4 | AN86: 1000 Watt HPS Lamp, Magnetic ballast | AO86: 250 Watt Incandescent or Halogen Lamp | AR86: 320 Watt MH Lamp, Electronic Ballast | AS86: 320 Watt MH Lamp, Magnetic ballast | AU86: 75 Watt Compact Fluorescent | BA86: CFL | BB86: 80 Watt Compact Fluorescent | BC86: None | BD86: 1 | BE86: 80 | BF86: 80
A87: 5 | AO87: 300 Watt Incandescent or Halogen Lamp | AR87: 350 Watt MH Lamp, Electronic Ballast | AS87: 350 Watt MH Lamp, Magnetic ballast | AU87: 80 Watt Compact Fluorescent | BA87: CFL | BB87: 85 Watt Compact Fluorescent | BC87: None | BD87: 1 | BE87: 85 | BF87: 85
A88: 6 | AO88: 400 Watt Incandescent or Halogen Lamp | AR88: 400 Watt MH Lamp, Electronic Ballast | AS88: 360 Watt MH Lamp, Magnetic ballast | AU88: 85 Watt Compact Fluorescent | BA88: CFL | BB88: 90 Watt Compact Fluorescent | BC88: None | BD88: 1 | BE88: 90 | BF88: 90
A89: 7 | AO89: 448 Watt Incandescent or Halogen Lamp | AS89: 400 Watt MH Lamp, Magnetic ballast | AU89: 90 Watt Compact Fluorescent | BA89: CFL | BB89: 95 Watt Compact Fluorescent | BC89: None | BD89: 1 | BE89: 95 | BF89: 95
A90: 8 | AO90: 500 Watt Incandescent or Halogen Lamp | AS90: 450 Watt MH Lamp, Magnetic ballast | AU90: 95 Watt Compact Fluorescent | BA90: CFL | BB90: 100 Watt Compact Fluorescent | BC90: None | BD90: 1 | BE90: 100 | BF90: 100
A91: 9 | AO91: 750 Watt Incandescent or Halogen Lamp | AS91: 750 Watt MH Lamp, Magnetic ballast | AU91: 100 Watt Compact Fluorescent | BA91: CFL | BB91: 105 Watt Compact Fluorescent | BC91: None | BD91: 1 | BE91: 105 | BF91: 105
A92: 10 | R92: TABLE 2: REPLACEMENT FROM HID | Y92: 2. Fixture Type | AD92: 3. Ballast Type | AO92: 1000 Watt Incandescent or Halogen Lamp | AS92: 1000 Watt MH Lamp, Magnetic ballast | AU92: 105 Watt Compact Fluorescent | BA92: CFL | BB92: 110 Watt Compact Fluorescent | BC92: None | BD92: 1 | BE92: 110 | BF92: 110
A93: 11 | Y93: RFixturereplacingFixture | Z93: RLampreplacingLamp | AA93: RFixturetoRetrofitKit | AD93: RT5R | AE93: RT8R | AF93: RFUTT8R | AG93: RLEDR | AH93: RRetrofitKitR | AO93: 1500 Watt Incandescent or Halogen Lamp | AS93: 1500 Watt MH Lamp, Magnetic ballast | AU93: 110 Watt Compact Fluorescent | BA93: High Pressure Sodium | BB93: 35 Watt HPS Lamp, Magnetic ballast | BC93: Magnetic | BD93: 1 | BE93: 35 | BF93: 46
A94: 12 | Y94: LED | Z94: LED | AA94: Retrofit Kit | AD94: PRS Elec | AE94: Electronic HO | AF94: Electronic | AG94: Flood and Spot LEDs Over 20W | AH94: LED Retrofit Kit | AO94: 2000 Watt Incandescent or Halogen Lamp | BA94: High Pressure Sodium | BB94: 50 Watt HPS Lamp, Magnetic ballast | BC94: Magnetic | BD94: 1 | BE94: 50 | BF94: 66
A95: 13 | AE95: Electronic Std | AF95: Electronic HO | AG95: Downlight Can Fixture Over 20W | BA95: High Pressure Sodium | BB95: 70 Watt HPS Lamp, Magnetic ballast | BC95: Magnetic | BD95: 1 | BE95: 70 | BF95: 95
A96: 14 | AG96: Outdoor Pole/Arm-Mounted Area LEDs | BA96: High Pressure Sodium | BB96: 100 Watt HPS Lamp, Magnetic ballast | BC96: Magnetic | BD96: 1 | BE96: 100 | BF96: 138
A97: 15 | AG97: Outdoor Wall-Mounted Area LEDs | BA97: High Pressure Sodium | BB97: 150 Watt HPS Lamp, Magnetic ballast | BC97: Magnetic | BD97: 1 | BE97: 150 | BF97: 188
A98: Subtotal T5, T8 or T12 Base Case Wattage | N98: =IF(SUM(N83:N97)=0,"",SUM(N83:N97)) ->  | AG98: Fuel Pump Canopy LEDs | BA98: High Pressure Sodium | BB98: 200 Watt HPS Lamp, Magnetic ballast | BC98: Magnetic | BD98: 1 | BE98: 200 | BF98: 250
A99: Replacement equipment: LED lamps, fixtures, or fixture retrofit kits being installed | AG99: Parking Garage LEDs | BA99: High Pressure Sodium | BB99: 250 Watt HPS Lamp, Magnetic ballast | BC99: Magnetic | BD99: 1 | BE99: 250 | BF99: 295
A100: # | B100: Measure Type | C100: Retrofit Type | D100: Fixture Type | F100: LED Fixture Sub Type | H100: Description (type in model number) | J100: Lamps/ Fixture | K100: Lamp Wattage | L100: Fixture Quantity | M100: Fixture Wattage | N100: Installed Watts | AG100: High-Bay LEDs | BA100: High Pressure Sodium | BB100: 310 Watt HPS Lamp, Magnetic ballast | BC100: Magnetic | BD100: 1 | BE100: 310 | BF100: 365
A101: 1 | M101: =IF($H101="","",J101*K101) ->  | N101: =IF((IF($H101="","",M101*L101))=0,"Missing Value",(IF($H101="","",M101*L101))) ->  | AG101: Low-Bay LEDs | BA101: High Pressure Sodium | BB101: 360 Watt HPS Lamp, Magnetic ballast | BC101: Magnetic | BD101: 1 | BE101: 360 | BF101: 414
A102: 2 | AG102: Indoor Wall-Mounted Area LEDs | BA102: High Pressure Sodium | BB102: 400 Watt HPS Lamp, Magnetic ballast | BC102: Magnetic | BD102: 1 | BE102: 400 | BF102: 465
A103: 3 | AG103: Stairwell and Passageway LEDs | BA103: High Pressure Sodium | BB103: 1000 Watt HPS Lamp, Magnetic ballast | BC103: Magnetic | BD103: 1 | BE103: 1000 | BF103: 1100
A104: 4 | AG104: Signage | BA104: Incan or Halogen | BB104: 110 Watt Incandescent or Halogen Lamp | BC104: None | BD104: 1 | BE104: 110 | BF104: 110
A105: 5 | AG105: Bollards | BA105: Incan or Halogen | BB105: 116 Watt Incandescent or Halogen Lamp | BC105: None | BD105: 1 | BE105: 116 | BF105: 116
A106: 6 | AG106: Display Case LEDs | BA106: Incan or Halogen | BB106: 120 Watt Incandescent or Halogen Lamp | BC106: None | BD106: 1 | BE106: 120 | BF106: 120
A107: 7 | AG107: 1x4 Luminaires | BA107: Incan or Halogen | BB107: 125 Watt Incandescent or Halogen Lamp | BC107: None | BD107: 1 | BE107: 125 | BF107: 125
A108: 8 | AG108: 2x2 Luminaires | BA108: Incan or Halogen | BB108: 130 Watt Incandescent or Halogen Lamp | BC108: None | BD108: 1 | BE108: 130 | BF108: 130
A109: 9 | AG109: 2x4 Luminaires | BA109: Incan or Halogen | BB109: 135 Watt Incandescent or Halogen Lamp | BC109: None | BD109: 1 | BE109: 135 | BF109: 135
A110: 10 | AG110: 1x8 Luminaires | BA110: Incan or Halogen | BB110: 150 Watt Incandescent or Halogen Lamp | BC110: None | BD110: 1 | BE110: 150 | BF110: 150
A111: 11 | BA111: Incan or Halogen | BB111: 160 Watt Incandescent or Halogen Lamp | BC111: None | BD111: 1 | BE111: 160 | BF111: 160
A112: 12 | BA112: Incan or Halogen | BB112: 170 Watt Incandescent or Halogen Lamp | BC112: None | BD112: 1 | BE112: 170 | BF112: 170
A113: 13 | BA113: Incan or Halogen | BB113: 200 Watt Incandescent or Halogen Lamp | BC113: None | BD113: 1 | BE113: 200 | BF113: 200
A114: 14 | BA114: Incan or Halogen | BB114: 250 Watt Incandescent or Halogen Lamp | BC114: None | BD114: 1 | BE114: 250 | BF114: 250
A115: 15 | BA115: Incan or Halogen | BB115: 300 Watt Incandescent or Halogen Lamp | BC115: None | BD115: 1 | BE115: 300 | BF115: 300
A116: Subtotal Installed LED Fixture Wattage | N116: =IF(SUM(N101:N115)=0,"",SUM(N101:N115)) ->  | BA116: Incan or Halogen | BB116: 400 Watt Incandescent or Halogen Lamp | BC116: None | BD116: 1 | BE116: 400 | BF116: 400
A117: 4. Controls for Existing LED Fixtures (Refer to Section 1 for Interior Controls) | Y117: 2. Fixture Type | AD117: 3. Ballast Type | BA117: Incan or Halogen | BB117: 448 Watt Incandescent or Halogen Lamp | BC117: None | BD117: 1 | BE117: 448 | BF117: 448
R118: TMeasureType | T118: TRetrofitType | Y118: TFixturereplacingFixture | Z118: TLampreplacingLamp | AA118: TFixturetoRetrofitKit | AD118: FUT12 | AE118: FUT8 | AF118: T12 | AG118: T8 | AH118: F2RK | AI118: T5 | BA118: Incan or Halogen | BB118: 500 Watt Incandescent or Halogen Lamp | BC118: None | BD118: 1 | BE118: 500 | BF118: 500
B119: Type of Retrofit | D119: Controlled Fixture | F119: Total Incentive | R119: Interior | T119: Fixture replacing Fixture | Y119: T5 | Z119: T5 | AA119: T5 | AD119: TFUT12T | AE119: TFUT8T | AF119: TT12T | AG119: TT8T | AH119: TFixturetoRetrofitKitT | AI119: TT5T | AN119: FUT12Magnetic | AO119: FUT8Electronic | AP119: FUT8ElectronicHO | AQ119: T12Magnetic | AR119: T8ElectronicHO | AS119: T8ElectronicStd | AT119: T5PRSElec | BA119: Incan or Halogen | BB119: 750 Watt Incandescent or Halogen Lamp | BC119: None | BD119: 1 | BE119: 750 | BF119: 750
D120: Incentive | E120: Watts Reduced | R120: Interior 18 Hour | T120: Lamp replacing Lamp | Y120: T8 | Z120: T8 | AA120: T8 | AD120: Magnetic | AE120: Electronic | AF120: Magnetic | AG120: Electronic HO | AH120: Fixture to Retrofit Kit | AI120: PRS Elec | AN120: (1) U-Tube, T12 STD Lamp, STD Mag Ballast, 34 Watt Lamps | AO120: (1) U-Tube, T8 Standard ballast, 32 Watt Lamp | AP120: (1) U-Tube, T8 High Output Ballast, 32 Watt Lamp | AQ120: (1) 24" T12, STD Lamps, 20 Watt Lamps | AR120: (1) 24", T8, High Output Ballast, 17 Watt Lamps | AS120: (1) 24", T8, Std Elec Ballast, 17 Watt Lamps | AT120: (1) 22" T-5 14W Lamp (1) Prog Start or PRS Ballast, HLO (.95<BF<1.1) | BA120: Incan or Halogen | BB120: 1000 Watt Incandescent or Halogen Lamp | BC120: None | BD120: 1 | BE120: 1000 | BF120: 1000
B121: Interior | D121: NA | E121: NA | F121: NA | R121: Exterior | T121: Fixture to Retrofit Kit | Y121: T12 | Z121: T12 | AA121: T12 | AE121: Electronic HO | AG121: Electronic Std | AN121: (1) U-Tube, T12 STD Lamp, STD Mag Ballast, 40 Watt Lamps | AO121: (2) U-Tube, T8 Standard ballast, 32 Watt Lamp | AP121: (2) U-Tube, T8 High Output Ballast, 32 Watt Lamp | AQ121: (1) 36" T12, STD Lamps Mag-STD, 30 Watt Lamps | AR121: (1) 36", T8, High Output Ballast, 25 Watt Lamps | AS121: (1) 36", T8, Std Elec Ballast, 25 Watt Lamps | AT121: (1) 22" T-5 24W HO Lamp (1) Prog Start or PRS Ballast, HLO (.95<BF<1) | BA121: Incan or Halogen | BB121: 1500 Watt Incandescent or Halogen Lamp | BC121: None | BD121: 1 | BE121: 1500 | BF121: 1500
B122: Interior 18 Hour | D122: NA | E122: NA | F122: NA | Q122: =+F125 -> 0 | R122: 24 Hour/Garage/3-Shift | Y122: FUT8 | Z122: FUT8 | AA122: FUT8 | AN122: (2) U-Tube, T12 STD Lamp, STD Mag Ballast, 34 Watt Lamps | AQ122: (1) 48" T12, ES Lamp, Magnetic Ballast-STD, 34 Watt Lamps | AR122: (1) 48", T8, High Output Ballast, 28 Watt Lamps | AS122: (1) 48", T8, Std Ballast, 25 Watt Lamps | AT122: (1) 34" T-5 21W Lamp (1) Prog Start or PRS Ballast, HLO (.95<BF<1.1) | BA122: Incan or Halogen | BB122: 2000 Watt Incandescent or Halogen Lamp | BC122: None | BD122: 1 | BE122: 2000 | BF122: 2000
B123: Exterior | D123: 0.42 | E123: =SUMIFS($N$128:$N$142,$B$128:$B$142,$B123,$D$128:$D$142,D$119) -> 0 | F123: =D123*E123 -> 0 | Y123: FUT12 | Z123: FUT12 | AA123: FUT12 | AN123: (2) U-Tube, T12 STD Lamp, STD Mag Ballast, 40 Watt Lamps | AQ123: (1) 48" T12, STD Lamp, Magnetic Ballast-STD, 40 Watt Lamps | AR123: (1) 48", T8, High Output Ballast, 25 Watt Lamps | AS123: (1) 48", T8, Std Ballast, 28 Watt Lamps | AT123: (1) 34" T-5 39W HO Lamp (1) Prog Start or PRS Ballast, HLO (.95<BF<1.1) | BA123: Mercury Vapor | BB123: 40 Watt MV Lamp | BC123: Magnetic | BD123: 1 | BE123: 40 | BF123: 50
B124: 24 Hour/Garage/3-Shift | D124: 0.53 | E124: =SUMIFS($N$128:$N$142,$B$128:$B$142,$B124,$D$128:$D$142,D$119) -> 0 | F124: =D124*E124 -> 0 | AQ124: (1) 48" T12, STD Lamp, Magnetic Ballast-STD, 40 Watt Lamps | AR124: (1) 48", T8, High Output Ballast, 32 Watt Lamps | AS124: (1) 48", T8, Std Ballast, 32 Watt Lamps | AT124: (1) 45.8" T-5 28W Lamp (1) Prog Start or PRS Ballast, HLO (.95<BF<1.1) | BA124: Mercury Vapor | BB124: 50 Watt MV Lamp | BC124: Magnetic | BD124: 1 | BE124: 50 | BF124: 74
B125: Controls on Existing LED Fixtures | F125: =SUM(F121:G124) -> 0 | AQ125: (1) 48" T12, HO Lamps, 60 Watt Lamps | AR125: (1) 96", T8, High Output Ballast, 57 Watt Lamps | AS125: (1) 96", T8 Std Ballast, 57 Watt Lamps | AT125: (1) 45.8" T-5 54W HO Lamps (1) Prog RS Ballast, HLO(.95<BF<1.1) | BA125: Mercury Vapor | BB125: 75 Watt MV Lamp | BC125: Magnetic | BD125: 1 | BE125: 75 | BF125: 93
A126: Controlled Existing LED Fixture with High and Low Settings | AQ126: (1) 72" T12, HO Lamps, 85 Watt Lamps | AR126: (1) 96", T8, High Output Ballast, 59 Watt Lamps | AS126: (1) 96", T8 Std Ballast, 59 Watt Lamps | AT126: (1) 57.6" T-5 35W Lamp (1) Prog Start or PRS Ballast, HLO (.95<BF<1.1) | BA126: Mercury Vapor | BB126: 100 Watt MV Lamp | BC126: Magnetic | BD126: 1 | BE126: 100 | BF126: 125
A127: # | B127: Measure Type | C127: Retrofit Type | D127: Fixture Type | F127: Sub Type | H127: Description (type in) | J127: Fixture Quantity | K127: High Setting Wattage | L127: Low Setting Wattage | M127: Weighted Average Watts Reduced | AQ127: (1) 96" T12, ES Lamps Mag-STD, 60 Watt Lamps | AR127: (1) 96", T8, High Output Ballast, 86 Watt Lamps | AS127: (1) 96", T8 Std Ballast, 86 Watt Lamps | AT127: (1) 57.6" T-5 80W HO Lamp (1) Prog Start or PRS Ballast, HLO (.95<BF<1.1) | BA127: Mercury Vapor | BB127: 160 Watt MV self-ballasted Lamp | BC127: Magnetic | BD127: 1 | BE127: 160 | BF127: 160
A128: 1 | C128: =IFERROR(VLOOKUP($B128,$R$173:$U$175,3,FALSE),"") ->  | D128: =IFERROR(VLOOKUP($B128,$R$173:$U$175,4,FALSE),"") ->  | E128: =VLOOKUP($B128,$R$173:$U$175,3,FALSE) ->  | N128: =IF((IF($H128="","",(ROUND(((K128-L128)*0.85*J128),0))))=0,"Missing Value",(IF($H128="","",(ROUND(((K128-L128)*0.85*J128),0))))) ->  | AQ128: (1) 96" T12, STD Lamps Mag-STD, 75 Watt Lamps | AR128: (2) 24", T8, High Output Ballast, 17 Watt Lamps | AS128: (2) 24", T8, Std Elec Ballast, 17 Watt Lamps | AT128: (10) 45.8" T-5 54W HO Lamps (5) Prog RS Ballast, HLO (.95<BF<1.1) | BA128: Mercury Vapor | BB128: 175 Watt MV Lamp | BC128: Magnetic | BD128: 1 | BE128: 175 | BF128: 205
A129: 2 | N129: =IF((IF($H129="","",(ROUND(((K129-L129)*0.85*J129),0))))=0,"Missing Value",(IF($H129="","",(ROUND(((K129-L129)*0.85*J129),0))))) ->  | AQ129: (1) 96" T12, ES HO Lamps Mag-STD, 95 Watt Lamps | AR129: (2) 36", T8, High Output Ballast, 25 Watt Lamps | AS129: (2) 36", T8, Std Elec Ballast, 25 Watt Lamps | AT129: (12) 45.8" T-5 54W HO Lamps (6) Prog RS Ballast, HLO (.95<BF<1.1) | BA129: Mercury Vapor | BB129: 250 Watt MV Lamp | BC129: Magnetic | BD129: 1 | BE129: 250 | BF129: 290
A130: 3 | AQ130: (1) 96" T12, STD HO Lamps Mag-STD, 110 Watt Lamps | AR130: (2) 48", T8, High Output Ballast, 28 Watt Lamps | AS130: (2) 48", T8, Std Ballast, 25 Watt Lamps | AT130: (2) 22" T-5 14W Lamps (1) Prog Start or PRS Ballast, HLO (.95<BF<1.1) | BA130: Mercury Vapor | BB130: 400 Watt MV Lamp | BC130: Magnetic | BD130: 1 | BE130: 400 | BF130: 455
A131: 4 | AQ131: (1) 108" T12 F108, HO Lamps, 124 Watt Lamps | AR131: (2) 48", T8, High Output Ballast, 25 Watt Lamps | AS131: (2) 48", T8, Std Ballast, 28 Watt Lamps | AT131: (2) 22" T-5 24W HO Lamps (1) Prog Start or PRS Ballast, HLO (.95<BF<1) | BA131: Mercury Vapor | BB131: 700 Watt MV Lamp | BC131: Magnetic | BD131: 1 | BE131: 700 | BF131: 780
A132: 5 | AQ132: (1) 114" T12 F117, HO Lamps, 132 Watt Lamps | AR132: (2) 48", T8, High Output Ballast, 32 Watt Lamps | AS132: (2) 48", T8, Std Ballast, 32 Watt Lamps | AT132: (2) 34" T-5 21W Lamps (1) Prog.Start or PRS Ballast HLO (.95<BF<1.1) | BA132: Mercury Vapor | BB132: 1000 Watt MV Lamp | BC132: Magnetic | BD132: 1 | BE132: 1000 | BF132: 1075
A133: 6 | AQ133: (2) 24" T12, STD Lamps, 20 Watt Lamps | AR133: (2) 96", T8, High Output Ballast, 57 Watt Lamps | AS133: (2) 96", T8 Std Ballast, 57 Watt Lamps | AT133: (2) 34" T-5 39W HO Lamps (1) Prog Start or PRS Ballast, HLO (.95<BF<1.1) | BA133: Metal Halide | BB133: 20 Watt MH Lamp, Electronic Ballast | BC133: Electronic | BD133: 1 | BE133: 20 | BF133: 24
A134: 7 | AQ134: (2) 36" T12, STD Lamps Mag-STD, 30 Watt Lamps | AR134: (2) 96", T8, High Output Ballast, 59 Watt Lamps | AS134: (2) 96", T8 Std Ballast, 59 Watt Lamps | AT134: (2) 45.8" T-5 28W Lamps (1) Prog Start or PRS Ballast, HLO (.95<BF<1.1) | BA134: Metal Halide | BB134: 22 Watt MH Lamp, Electronic Ballast | BC134: Electronic | BD134: 1 | BE134: 22 | BF134: 26
A135: 8 | AQ135: (2) 40" T12 F42, HO Lamps, 55 Watt Lamps | AR135: (2) 96", T8, High Output Ballast, 86 Watt Lamps | AS135: (2) 96", T8 Std Ballast, 86 Watt Lamps | AT135: (2) 45.8" T-5 49W HO Lamps, (1) Prog Start or RS Ballast, HLO (.95<BF<1.1) | BA135: Metal Halide | BB135: 39 Watt MH Lamp, Electronic Ballast | BC135: Electronic | BD135: 1 | BE135: 39 | BF135: 44
A136: 9 | AQ136: (2) 48" T12, ES Lamp, Magnetic Ballast-STD, 34 Watt Lamps | AR136: (3) 24", T8, High Output Ballast, 17 Watt Lamps | AS136: (3) 24", T8, Std Elec Ballast, 17 Watt Lamps | AT136: (2) 45.8" T-5 54W HO Lamps (1) Prog RS Ballast, HLO (.95<BF<1.1) | BA136: Metal Halide | BB136: 50 Watt MH Lamp, Electronic Ballast | BC136: Electronic | BD136: 1 | BE136: 50 | BF136: 56
A137: 10 | AQ137: (2) 48" T12, HO Lamps, 60 Watt Lamps | AR137: (3) 36", T8, High Output Ballast, 25 Watt Lamps | AS137: (3) 36", T8, Std Elec Ballast, 25 Watt Lamps | AT137: (2) 57.6" T-5 35W Lamps (1) Prog Start or PRS Ballast, HLO (.95<BF<1.1) | BA137: Metal Halide | BB137: 70 Watt MH Lamp, Electronic Ballast | BC137: Electronic | BD137: 1 | BE137: 70 | BF137: 78
A138: 11 | Y138: 2. Fixture Type | AD138: 3. Ballast Type | AQ138: (2) 48" T12, STD Lamp, Magnetic Ballast-STD, 40 Watt Lamps | AR138: (3) 48", T8, High Output Ballast, 28 Watt Lamps | AS138: (3) 48", T8, Std Ballast, 25 Watt Lamps | AT138: (2) 57.6" T-5 80W HO Lamps (1) Prog Start or PRS Ballast, HLO (.95<BF<1.1) | BA138: Metal Halide | BB138: 100 Watt MH Lamp, Electronic Ballast | BC138: Electronic | BD138: 1 | BE138: 100 | BF138: 109
A139: 12 | Y139: RTFixturereplacingFixture | Z139: RTLampreplacingLamp | AA139: RTFixturetoRetrofitKit | AD139: RTLEDR | AE139: RTRetrofitKitR | AQ139: (2) 72" T12, HO Lamps, 85 Watt Lamps | AR139: (3) 48", T8, High Output Ballast, 25 Watt Lamps | AS139: (3) 48", T8, Std Ballast, 28 Watt Lamps | AT139: (3) 22" T-5 14W Lamps (2) Prog Start or PRS Ballasts, HLO (.95<BF<1.1) | BA139: Metal Halide | BB139: 150 Watt MH Lamp, Electronic Ballast | BC139: Electronic | BD139: 1 | BE139: 150 | BF139: 163
A140: 13 | Y140: LED | Z140: LED | AA140: Retrofit Kit | AD140: Flood and Spot LEDs Over 20W | AE140: LED Retrofit Kit | AQ140: (2) 96" T12, ES Lamps Mag-STD, 60 Watt Lamps | AR140: (3) 48", T8, High Output Ballast, 32 Watt Lamps | AS140: (3) 48", T8, Std Ballast, 32 Watt Lamps | AT140: (3) 22" T-5 24W HO Lamps (2) Prog Start or PRS Ballasts, HLO (.95<BF<1.1) | BA140: Metal Halide | BB140: 175 Watt MH Lamp, Electronic Ballast | BC140: Electronic | BD140: 1 | BE140: 175 | BF140: 191
A141: 14 | AD141: Downlight Can Fixture Over 20W | AQ141: (2) 96" T12, STD Lamps Mag-STD, 75 Watt Lamps | AR141: (3) 96", T8, High Output Ballast, 57 Watt Lamps | AS141: (3) 96", T8 Std Ballast, 57 Watt Lamps | AT141: (3) 34" T-5 21W Lamps (2) Prog Start or PRS Ballasts, HLO (.95<BF<1.1) | BA141: Metal Halide | BB141: 200 Watt MH Lamp, Electronic Ballast | BC141: Electronic | BD141: 1 | BE141: 200 | BF141: 216
A142: 15 | AD142: Parking Garage LEDs | AQ142: (2) 96" T12, ES HO Lamps Mag-STD, 95 Watt Lamps | AR142: (4) 36", T8, High Output Ballast, 25 Watt Lamps | AS142: (4) 36", T8, Std Elec Ballast, 25 Watt Lamps | AT142: (3) 45.8" T-5 54W HO Lamps, Prog RS (2) Ballast, HLO (.95<BF<1.1) | BA142: Metal Halide | BB142: 250 Watt MH Lamp, Electronic Ballast | BC142: Electronic | BD142: 1 | BE142: 250 | BF142: 266
A143: Subtotal Controls on LED Fixtures | M143: =IF(SUM(N128:N142)=0,"",SUM(N128:N142)) ->  | AD143: High-Bay LEDs | AQ143: (2) 96" T12, STD HO Lamps Mag-STD, 110 Watt Lamps | AR143: (4) 48", T8, High Output Ballast, 28 Watt Lamps | AS143: (4) 48", T8, Std Ballast, 25 Watt Lamps | AT143: (3) 57.6" T-5 35W Lamps (2) Prog Start or PRS Ballasts, HLO (.95<BF<1.1) | BA143: Metal Halide | BB143: 320 Watt MH Lamp, Electronic Ballast | BC143: Electronic | BD143: 1 | BE143: 320 | BF143: 341
AD144: Low-Bay LEDs | AQ144: (3) 36" T12, STD Lamps Mag-STD, 30 Watt Lamps | AR144: (4) 48", T8, High Output Ballast, 25 Watt Lamps | AS144: (4) 48", T8, Std Ballast, 28 Watt Lamps | AT144: (4) 22" T-5 14W Lamps (2) Prog Start or PRS Ballasts, HLO (.95<BF<1.1) | BA144: Metal Halide | BB144: 350 Watt MH Lamp, Electronic Ballast | BC144: Electronic | BD144: 1 | BE144: 350 | BF144: 371
AD145: Indoor Wall-Mounted Area LEDs | AQ145: (3) 48" T12, ES Lamp, Magnetic Ballast-STD, 34 Watt Lamps | AR145: (4) 48", T8, High Output Ballast, 32 Watt Lamps | AS145: (4) 48", T8, Std Ballast, 32 Watt Lamps | AT145: (4) 22" T-5 24W HO Lamps (2) Prog Start or PRS Ballasts, HLO (.95<BF<1.1) | BA145: Metal Halide | BB145: 400 Watt MH Lamp, Electronic Ballast | BC145: Electronic | BD145: 1 | BE145: 400 | BF145: 424
A146: IMPORTANT NOTICE: Only qualified LED lighting is eligible for a rebate. No fluorescent replacements are eligible for rebates. | AD146: Stairwell and Passageway LEDs | AQ146: (3) 48" T12, STD Lamp, Magnetic Ballast-STD, 40 Watt Lamps | AR146: (4) 96", T8, High Output Ballast, 57 Watt Lamps | AS146: (4) 96", T8 Std Ballast, 25 Watt Lamps | AT146: (4) 34" T-5 39W HO Lamps (2 )Prog.Start or PRS Ballasts, HLO (.95<BF<1.1) | BA146: Metal Halide | BB146: 450 Watt MH Lamp, Electronic Ballast | BC146: Electronic | BD146: 1 | BE146: 450 | BF146: 465
AD147: Bollards | AQ147: (3) 96" T12, ES Lamps Mag-STD, 60 Watt Lamps | AR147: (4) 96", T8, High Output Ballast, 59 Watt Lamps | AS147: (4) 96", T8 Std Ballast, 57 Watt Lamps | AT147: (4) 34" T-5 39W Lamps (2) Prog Start or PRS Ballasts, HLO (.95<BF<1.1) | BA147: Metal Halide | BB147: 32 Watt MH Lamp, Magnetic ballast | BC147: Magnetic | BD147: 1 | BE147: 32 | BF147: 42
A148: Lighting Scope of Work is REQUIRED for all lighting measures. | AD148: Display Case LEDs | AQ148: (3) 96" T12, ES HO Lamps Mag-STD, 95 Watt Lamps | AR148: (4) 96", T8, High Output Ballast, 86 Watt Lamps | AS148: (4) 96", T8 Std Ballast, 59 Watt Lamps | AT148: (4) 45.8" T-5 28W Lamps (2) Prog Start or PRS Ballasts, HLO (.95<BF<1.1) | BA148: Metal Halide | BB148: 39 Watt MH Lamp, Magnetic ballast | BC148: Magnetic | BD148: 1 | BE148: 39 | BF148: 56
AD149: 1x4 Luminaires | AQ149: (3) 96" T12, STD HO Lamps Mag-STD, 110 Watt Lamps | AR149: (6) 48", T8, High Output Ballast, 28 Watt Lamps | AS149: (4) 96", T8 Std Ballast, 86 Watt Lamps | AT149: (4) 45.8" T-5 49W HO Lamps, (2) Prog Start or RS Ballast, HLO (.95<BF<1.1) | BA149: Metal Halide | BB149: 50 Watt MH Lamp, Magnetic ballast | BC149: Magnetic | BD149: 1 | BE149: 50 | BF149: 67
A150: In no case will the program pay a rebate for lamps and retrofit kits that have been installed in fixtures with cracked, broken or yellowed lenses. | AD150: 2x2 Luminaires | AQ150: (4) 24" T12, STD Lamps, 20 Watt Lamps | AR150: (6) 48", T8, High Output Ballast, 32 Watt Lamps | AS150: (6) 48", T8, Std Ballast, 28 Watt Lamps | AT150: (4) 45.8" T-5 54W HO Lamps, (2) Prog RS Ballast, HLO (.95<BF<1.1) | BA150: Metal Halide | BB150: 70 Watt MH Lamp, Magnetic ballast | BC150: Magnetic | BD150: 1 | BE150: 70 | BF150: 94
AD151: 2x4 Luminaires | AQ151: (4) 36" T12, STD Lamps Mag-STD, 30 Watt Lamps | AR151: (6) 96", T8, High Output Ballast, 57 Watt Lamps | AS151: (6) 48", T8, Std Ballast, 32 Watt Lamps | AT151: (4) 45.8" T-5 54W HO Lamps, (2) Prog RS Ballast, HLO (.95<BF<1.1), alt 1 | BA151: Metal Halide | BB151: 100 Watt MH Lamp, Magnetic ballast | BC151: Magnetic | BD151: 1 | BE151: 100 | BF151: 127
AD152: 1x8 Luminaires | AQ152: (4) 48" T12, ES Lamp, Magnetic Ballast-STD, 34 Watt Lamps | AR152: (6) 96", T8, High Output Ballast, 59 Watt Lamps | AS152: (6) 96", T8 Std Ballast, 57 Watt Lamps | AT152: (5) 45.9" T-5 54W Lamps (2) Prog.Start or PRS Ballasts, HLO (.95<BF<1.1) | BA152: Metal Halide | BB152: 125 Watt MH Lamp, Magnetic ballast | BC152: Magnetic | BD152: 1 | BE152: 125 | BF152: 150
AQ153: (4) 48" T12, STD Lamp, Magnetic Ballast-STD, 40 Watt Lamps | AR153: (6) 96", T8, High Output Ballast, 86 Watt Lamps | AS153: (6) 96", T8 Std Ballast, 59 Watt Lamps | AT153: (6) 45.8" T-5 54W HO Lamps (3) Prog RS Ballast, HLO(.95<BF<1.1) | BA153: Metal Halide | BB153: 150 Watt MH Lamp, Magnetic Ballast | BC153: Magnetic | BD153: 1 | BE153: 150 | BF153: 184
AQ154: (4) 96" T12, ES Lamps Mag-STD, 60 Watt Lamps | AS154: (6) 96", T8 Std Ballast, 86 Watt Lamps | AT154: (6) 45.8" T-5 54W HO Lamps (3) Prog RS Ballast, HLO(.95<BF<1.1), alt 1 | BA154: Metal Halide | BB154: 175 Watt MH Lamp, Magnetic ballast | BC154: Magnetic | BD154: 1 | BE154: 175 | BF154: 209
AQ155: (4) 96" T12, ES HO Lamps Mag-STD, 95 Watt Lamps | AT155: (6) 45.9" T-5 49W HO Lamps, (3) Prog Start or RS Ballast, HLO (.95<BF<1.1) | BA155: Metal Halide | BB155: 200 Watt MH Lamp, Magnetic ballast | BC155: Magnetic | BD155: 1 | BE155: 200 | BF155: 232
AQ156: (4) 96" T12, STD HO Lamps Mag-STD, 110 Watt Lamps | AT156: (8) 45.8" T-5 49W HO Lamps, (4) Prog Start or RS Ballast, HLO(.95<BF<1.1) | BA156: Metal Halide | BB156: 250 Watt MH Lamp, Magnetic ballast | BC156: Magnetic | BD156: 1 | BE156: 250 | BF156: 291
BA157: Metal Halide | BB157: 320 Watt MH Lamp, Magnetic ballast | BC157: Magnetic | BD157: 1 | BE157: 320 | BF157: 367
BA158: Metal Halide | BB158: 350 Watt MH Lamp, Magnetic ballast | BC158: Magnetic | BD158: 1 | BE158: 350 | BF158: 395
BA159: Metal Halide | BB159: 360 Watt MH Lamp, Magnetic ballast | BC159: Magnetic | BD159: 1 | BE159: 360 | BF159: 418
BA160: Metal Halide | BB160: 400 Watt MH Lamp, Magnetic ballast | BC160: Magnetic | BD160: 1 | BE160: 400 | BF160: 456
BA161: Metal Halide | BB161: 450 Watt MH Lamp, Magnetic ballast | BC161: Magnetic | BD161: 1 | BE161: 450 | BF161: 507
BA162: Metal Halide | BB162: 750 Watt MH Lamp, Magnetic ballast | BC162: Magnetic | BD162: 1 | BE162: 750 | BF162: 814
BA163: Metal Halide | BB163: 1000 Watt MH Lamp, Magnetic ballast | BC163: Magnetic | BD163: 1 | BE163: 1000 | BF163: 1077
BA164: Metal Halide | BB164: 1500 Watt MH Lamp, Magnetic ballast | BC164: Magnetic | BD164: 1 | BE164: 1500 | BF164: 1608
BA165: T8 | BB165: (1) 24", T8, Std Elec Ballast, 17 Watt Lamps | BC165: Electronic Std | BD165: 1 | BE165: 17 | BF165: 16
BA166: T8 | BB166: (1) 24", T8, High Output Ballast, 17 Watt Lamps | BC166: Electronic HO | BD166: 1 | BE166: 17 | BF166: 20
BA167: T8 | BB167: (1) 36", T8, Std Elec Ballast, 25 Watt Lamps | BC167: Electronic Std | BD167: 1 | BE167: 25 | BF167: 23
BA168: T8 | BB168: (1) 36", T8, High Output Ballast, 25 Watt Lamps | BC168: Electronic HO | BD168: 1 | BE168: 25 | BF168: 28
BA169: T8 | BB169: (1) 48", T8, Std Ballast, 25 Watt Lamps | BC169: Electronic Std | BD169: 1 | BE169: 25 | BF169: 23
BA170: T8 | BB170: (1) 48", T8, High Output Ballast, 25 Watt Lamps | BC170: Electronic HO | BD170: 1 | BE170: 25 | BF170: 28
BA171: T8 | BB171: (1) 48", T8, Std Ballast, 28 Watt Lamps | BC171: Electronic Std | BD171: 1 | BE171: 28 | BF171: 25
S172: 2. Fixture Type | BA172: T8 | BB172: (1) 48", T8, High Output Ballast, 28 Watt Lamps | BC172: Electronic HO | BD172: 1 | BE172: 28 | BF172: 32
T173: Retrofit Type | U173: Fixture Type | BA173: T8 | BB173: (1) 48", T8, Std Ballast, 32 Watt Lamps | BC173: Electronic Std | BD173: 1 | BE173: 32 | BF173: 30
R174: CMeasureType | T174: LED | U174: Controlled Fixture | BA174: T8 | BB174: (1) 48", T8, High Output Ballast, 32 Watt Lamps | BC174: Electronic HO | BD174: 1 | BE174: 32 | BF174: 36
R175: Exterior | T175: LED | U175: Controlled Fixture | BA175: T8 | BB175: (1) 96", T8 Std Ballast, 57 Watt Lamps | BC175: Electronic Std | BD175: 1 | BE175: 57 | BF175: 52
R176: 24 Hour/Garage/3-Shift | BA176: T8 | BB176: (1) 96", T8, High Output Ballast, 57 Watt Lamps | BC176: Electronic HO | BD176: 1 | BE176: 57 | BF176: 59
BA177: T8 | BB177: (1) 96", T8 Std Ballast, 59 Watt Lamps | BC177: Electronic Std | BD177: 1 | BE177: 59 | BF177: 55
BA178: T8 | BB178: (1) 96", T8, High Output Ballast, 59 Watt Lamps | BC178: Electronic HO | BD178: 1 | BE178: 59 | BF178: 62
BA179: T8 | BB179: (1) 96", T8 Std Ballast, 86 Watt Lamps | BC179: Electronic Std | BD179: 1 | BE179: 86 | BF179: 82
BA180: T8 | BB180: (1) 96", T8, High Output Ballast, 86 Watt Lamps | BC180: Electronic HO | BD180: 1 | BE180: 86 | BF180: 90
BA181: T8 | BB181: (2) 24", T8, Std Elec Ballast, 17 Watt Lamps | BC181: Electronic Std | BD181: 2 | BE181: 17 | BF181: 32
BA182: T8 | BB182: (2) 24", T8, High Output Ballast, 17 Watt Lamps | BC182: Electronic HO | BD182: 2 | BE182: 17 | BF182: 40
BA183: T8 | BB183: (2) 36", T8, Std Elec Ballast, 25 Watt Lamps | BC183: Electronic Std | BD183: 2 | BE183: 25 | BF183: 46
BA184: T8 | BB184: (2) 36", T8, High Output Ballast, 25 Watt Lamps | BC184: Electronic HO | BD184: 2 | BE184: 25 | BF184: 56
BA185: T8 | BB185: (2) 48", T8, Std Ballast, 25 Watt Lamps | BC185: Electronic Std | BD185: 2 | BE185: 25 | BF185: 46
BA186: T8 | BB186: (2) 48", T8, High Output Ballast, 25 Watt Lamps | BC186: Electronic HO | BD186: 2 | BE186: 25 | BF186: 56
BA187: T8 | BB187: (2) 48", T8, Std Ballast, 28 Watt Lamps | BC187: Electronic Std | BD187: 2 | BE187: 28 | BF187: 50
BA188: T8 | BB188: (2) 48", T8, High Output Ballast, 28 Watt Lamps | BC188: Electronic HO | BD188: 2 | BE188: 28 | BF188: 64
BA189: T8 | BB189: (2) 48", T8, Std Ballast, 32 Watt Lamps | BC189: Electronic Std | BD189: 2 | BE189: 32 | BF189: 60
BA190: T8 | BB190: (2) 48", T8, High Output Ballast, 32 Watt Lamps | BC190: Electronic HO | BD190: 2 | BE190: 32 | BF190: 72
BA191: T8 | BB191: (2) 96", T8 Std Ballast, 57 Watt Lamps | BC191: Electronic Std | BD191: 2 | BE191: 57 | BF191: 100
BA192: T8 | BB192: (2) 96", T8, High Output Ballast, 57 Watt Lamps | BC192: Electronic HO | BD192: 2 | BE192: 57 | BF192: 105
BA193: T8 | BB193: (2) 96", T8 Std Ballast, 59 Watt Lamps | BC193: Electronic Std | BD193: 2 | BE193: 59 | BF193: 109
BA194: T8 | BB194: (2) 96", T8, High Output Ballast, 59 Watt Lamps | BC194: Electronic HO | BD194: 2 | BE194: 59 | BF194: 160
BA195: T8 | BB195: (2) 96", T8 Std Ballast, 86 Watt Lamps | BC195: Electronic Std | BD195: 2 | BE195: 86 | BF195: 164
BA196: T8 | BB196: (2) 96", T8, High Output Ballast, 86 Watt Lamps | BC196: Electronic HO | BD196: 2 | BE196: 86 | BF196: 180
BA197: T8 | BB197: (3) 24", T8, Std Elec Ballast, 17 Watt Lamps | BC197: Electronic Std | BD197: 3 | BE197: 17 | BF197: 48
BA198: T8 | BB198: (3) 24", T8, High Output Ballast, 17 Watt Lamps | BC198: Electronic HO | BD198: 3 | BE198: 17 | BF198: 60
BA199: T8 | BB199: (3) 36", T8, Std Elec Ballast, 25 Watt Lamps | BC199: Electronic Std | BD199: 3 | BE199: 25 | BF199: 69
BA200: T8 | BB200: (3) 36", T8, High Output Ballast, 25 Watt Lamps | BC200: Electronic HO | BD200: 3 | BE200: 25 | BF200: 84
BA201: T8 | BB201: (3) 48", T8, Std Ballast, 25 Watt Lamps | BC201: Electronic Std | BD201: 3 | BE201: 25 | BF201: 69
BA202: T8 | BB202: (3) 48", T8, High Output Ballast, 25 Watt Lamps | BC202: Electronic HO | BD202: 3 | BE202: 25 | BF202: 84
BA203: T8 | BB203: (3) 48", T8, Std Ballast, 28 Watt Lamps | BC203: Electronic Std | BD203: 3 | BE203: 28 | BF203: 75
... 124 more rows

Sheet HVAC
B1: HVAC INCENTIVES | G1: See spec sheets at the bottom of the page! | L1: USE THIS SECTION TO REPLACE THE TABLE IN THE SPECS WORKSHEET
A2: Applicant: fill in gray fields at bottom | B2: See instructions to complete this worksheet at the bottom of the page
A3: HVAC Units
A4: Equipment Type | D4: Size Category | G4: Qualifying Efficiency* | H4: Incentive (per ton) | I4: Efficiency Bonus | J4: New Qualifying Efficiency* | L4: Equipment Type | M4: Size Category | P4: Qualifying Efficiency* | Q4: Incentive (per ton) | R4: Efficiency Bonus
A5: Unitary and Split Air Conditioning Systems | D5: < 65,000 Btu/h (5.4 tons) | G5: 15.0 SEER | H5: 25 | I5: 15 | J5: 15.0 SEER | L5: Unitary and Split Air Conditioning Systems | M5: < 65,000 Btu/h (5.4 tons) | P5: =J5 -> 15.0 SEER | Q5: 25 | R5: 15
D6: ≥ 65,000 Btu/h and < 135,000 Btu/h (5.4-11.25 tons) | G6: 13.7 IEER** | J6: 11.8 EER** | M6: ≥ 65,000 Btu/h and < 135,000 Btu/h (5.4-11.25 tons) | P6: 13.7 IEER**
D8: ≥ 135,000 Btu/h and < 240,000 Btu/h (11.25-20 tons) | G8: 13.3 IEER** | J8: 11.6 EER** | M8: ≥ 135,000 Btu/h and < 240,000 Btu/h (11.25-20 tons) | P8: 13.3 IEER**
D10: ≥ 240,000 Btu/h and < 760,000 Btu/h (20-63 Tons) | G10: 12.4 IEER** | J10: 10.5 EER** | M10: ≥ 240,000 Btu/h and < 760,000 Btu/h (20-63 Tons) | P10: 12.4 IEER**
D12: ≥ 760,000 Btu/h (> 63 tons) | G12: 12.0 IEER** | J12: 10.2 EER** | M12: ≥ 760,000 Btu/h (> 63 tons) | P12: 12.0 IEER**
A14: Air Source Heat Pumps | D14: < 65,000 Btu/h (5.4 tons) | G14: 15 SEER and 8.6 HSPF | H14: 40 | I14: 15 | J14: 15 SEER and 8.6 HSPF | L14: Air Source Heat Pumps | M14: < 65,000 Btu/h (5.4 tons) | P14: 15 SEER and 8.6 HSPF | Q14: 40 | R14: 15
D15: ≥ 65,000 Btu/h and < 135,000 Btu/h (5.4-11.25 tons) | G15: 12.9 IEER** and 3.5 COP | J15: 11.6 EER** and 3.5 COP | M15: ≥ 65,000 Btu/h and < 135,000 Btu/h (5.4-11.25 tons) | P15: 12.9 IEER** and 3.5 COP
D17: ≥ 135,000 Btu/h and < 240,000 Btu/h (11.25-20 tons) | G17: 12.4 IEER** and 3.4 COP | J17: 11.1 EER** and 3.4 COP | M17: ≥ 135,000 Btu/h and < 240,000 Btu/h (11.25-20 tons) | P17: 12.4 IEER** and 3.4 COP
D19: ≥ 240,000 Btu/h and < 760,000 Btu/h (20-63 Tons) | G19: 11.4 IEER** and 3.4 COP | J19: 10.0 EER** and 3.4 COP | M19: ≥ 240,000 Btu/h and < 760,000 Btu/h (20-63 Tons) | P19: 11.4 IEER** and 3.4 COP
A21: Chillers: Water-Cooled, Centrifugal*** | D21: ≤ 150 tons | G21: 0.495 kW/ton-IPLV | H21: 20 | I21: 20 | J21: 0.495 kW/ton-IPLV | L21: Chillers: Water-Cooled, Centrifugal | M21: ≤ 150 tons | P21: 0.495 kW/ton-IPLV | Q21: 20 | R21: 20
D22: >150 tons and ≤ 300 tons | G22: 0.495 kW/ton-IPLV | J22: 0.495 kW/ton-IPLV | M22: >150 tons and ≤ 300 tons | P22: 0.495 kW/ton-IPLV
D23: > 300 tons to ≤ 400 tons | G23: 0.468 kW/ton-IPLV | J23: 0.468 kW/ton-IPLV | M23: > 300 tons to ≤ 400 tons | P23: 0.468 kW/ton-IPLV
D24: > 400 tons to ≤ 600 tons | G24: 0.450 kW/ton-IPLV | J24: 0.450 kW/ton-IPLV | M24: > 400 tons to ≤ 600 tons | P24: 0.450 kW/ton-IPLV
D25: > 600 | G25: 0.450 kW/ton-IPLV | J25: 0.450 kW/ton-IPLV | M25: > 600 | P25: 0.450 kW/ton-IPLV
A26: Chillers: Water Cooled Scroll, Helical-Rotary or Reciprocating*** | D26: ≤ 75 tons | G26: 0.54 kW/ton-IPLV | J26: 0.54 kW/ton-IPLV | L26: Chillers: Water Cooled Scroll, Helical-Rotary or Reciprocating*** | M26: ≤ 75 tons | P26: 0.54 kW/ton-IPLV
D27: > 75 tons and ≤ 150 tons | G27: 0.504 kW/ton-IPLV | J27: 0.504 kW/ton-IPLV | M27: > 75 tons and ≤ 150 tons | P27: 0.504 kW/ton-IPLV
D28: >150 tons and ≤ 300 tons | G28: 0.486 kW/ton-IPLV | J28: 0.486 kW/ton-IPLV | M28: >150 tons and ≤ 300 tons | P28: 0.486 kW/ton-IPLV
D29: > 300 tons and ≤ 600 tons | G29: 0.468 kW/ton-IPLV | J29: 0.468 kW/ton-IPLV | M29: > 300 tons and ≤ 600 tons | P29: 0.468 kW/ton-IPLV
D30: > 600 tons | G30: 0.540 kW/ton-IPLV | J30: 0.540 kW/ton-IPLV | M30: > 600 tons | P30: 0.540 kW/ton-IPLV
A31: Chillers: Air-Cooled | D31: ≤ 150 | G31: 0.788 kW/ton-IPLV | H31: 40 | I31: 20 | J31: 0.788 kW/ton-IPLV | L31: Chillers: Air-Cooled | M31: ≤ 150 | P31: 0.788 kW/ton-IPLV | Q31: 40 | R31: 20
D32: > 150 | G32: 0.771 kW/ton-IPLV | J32: 0.771 kW/ton-IPLV | M32: > 150 | P32: 0.771 kW/ton-IPLV
A33: Packaged Terminal AC | D33: ALL | G33: 14.5-(0.300 x Btu/h/1000) EER | H33: 50 | I33: 0 | J33: 14.5-(0.300 x Btu/h/1000) EER | L33: Packaged Terminal AC | M33: ALL | P33: 14.5-(0.300 x Btu/h/1000) EER | Q33: 50 | R33: 0
A34: Packaged Terminal HP | D34: ALL | G34: 14.5-(0.300 x Btu/h/1000) EER | H34: 100 | J34: 14.5-(0.300 x Btu/h/1000) EER | L34: Packaged Terminal HP | M34: ALL | P34: 14.5-(0.300 x Btu/h/1000) EER | Q34: 100
A35: Variable Refrigerant Flow HP | D35: < 65,000 Btu/h (5.4 tons) | G35: 13.9 SEER and 8.3 HSPF | H35: 40 | I35: 20 | J35: 13.9 SEER and 8.3 HSPF | L35: Variable Refrigerant Flow HP | M35: < 65,000 Btu/h (5.4 tons) | P35: 13.9 SEER and 8.3 HSPF | Q35: 40 | R35: 20
D36: ≥ 65,000 Btu/h and < 135,000 Btu/h (5.4-11.25 tons) | G36: 15.4 IEER and 3.5 COP | H36: 40 | I36: 25 | J36: 15.4 IEER and 3.5 COP | M36: ≥ 65,000 Btu/h and < 135,000 Btu/h (5.4-11.25 tons) | P36: 15.4 IEER and 3.5 COP | Q36: 40 | R36: 25
D37: ≥ 135,000 Btu/h and < 240,000 Btu/h (11.25-20 tons) | G37: 14.7 IEER and 3.4 COP | J37: 14.7 IEER and 3.4 COP | M37: ≥ 135,000 Btu/h and < 240,000 Btu/h (11.25-20 tons) | P37: 14.7 IEER and 3.4 COP
D38: ≥ 240,000 Btu/h (20 Tons) | G38: 13.4 IEER and 3.4 COP | J38: 13.4 IEER and 3.4 COP | M38: ≥ 240,000 Btu/h (20 Tons) | P38: 13.4 IEER and 3.4 COP
A39: Computer Room Air Conditioners | D39: < 65,000 Btuh | G39: 8.2 EER | H39: $8.00/Mbtu | I39: N/A | L39: Computer Room Air Conditioners | M39: < 65,000 Btuh | P39: 8.2 EER | Q39: $8.00/Mbtu | R39: N/A
D40: ≥ 65,000 Btuh to < 240,000 Btuh | G40: 7.5 EER | M40: ≥ 65,000 Btuh to < 240,000 Btuh | P40: 7.5 EER
D41: ≥ 240,000 | G41: 7.2 EER | M41: ≥ 240,000 | P41: 7.2 EER
A42: Equipment Model | B42: Tons (use Btuh for CRAC) | C42: Efficiency Rating | D42: Quantity | E42: Equipment Type | G42: Size Category | I42: Incentive
I43: =IF(E43="","",IF(LEFT(E43,2)<>"Ch",B43*D43*IF(VLOOKUP(CONCATENATE(E43,G43),$V$106:$Y$139,2,FALSE)>C43,0,VLOOKUP(CONCATENATE(E43,G43),$V$106:$Y$139,3,FALSE)+(C43-(VLOOKUP(CONCATENATE(E43,G43),$V$106:$Y$139,2,FALSE)))*(VLOOKUP(CONCATENATE(E43,G43),$V$106:$Y$139,4,FALSE))),B43*D43*IF(VLOOKUP(CONCATENATE(E43,G43),$V$106:$Y$139,2,FALSE)<C43,0,VLOOKUP(CONCATENATE(E43,G43),$V$106:$Y$139,3,FALSE)+((VLOOKUP(CONCATENATE(E43,G43),$V$106:$Y$139,2,FALSE))-C43)*(VLOOKUP(CONCATENATE(E43,G43),$V$106:$Y$139,4,FALSE))/0.1))) -> 
A57: HVAC Units Incentive | I57: =SUM(I43:I56) -> 0
A58: * Use SEER for Unitary and Split Units less than 5.4 tons and IEER for units larger than 5.4 tons; values available from CEE 2012 Tier 2; Use IEER for VRF Units; IPLV values based on ASHRAE 90.1-2016; see specifications page for complete list. Attach AHRI Rating Sheet. ** Units with electric resistance heating must have IEER values 0.2 higher than the efficiencies listed. *** Unit efficiency for chillers should be provided in kW per ton – IPLV where IPLV = Integrated Part Load Value; values based on ASHRAE 90.1-2016. Attach manufacturer's rating sheet for credit.
A63: INSTRUCTIONS TO COMPLETE THIS WORKSHEET:
A64: Equipment Model: | B64: Enter the equipment model as shown on the invoice; provide the specification sheet(s) that accompany the model
A65: Tons: | B65: Enter the equipment tonnage from the AHRI or manufacturer specification sheet
A66: Efficiency Rating: | B66: Enter the equipment efficiency rating from the AHRI or manufacturer specification sheet; for chillers, kW/ton = 12/IPLV EER
A67: Quantity: | B67: Enter the number of units that fit this size and efficiency rating
A68: Equipment Type: | B68: Enter the equipment type from the drop-down menu
A69: Size Category: | B69: Enter the equipment size from the drop-down menu
A70: Note: The reference standard in IECC 2018 is ASHRAE 90.1-2016
A71: Guest Room Energy Management System
A72: Type/ Description | C72: Incentive Unit | E72: Unit Size (tons) | G72: Quantity | H72: Incentive/ Ton | I72: Incentive
A73: Hotel Guest Room Occupancy Sensor | C73: Per Ton Per Room | H73: 75 | I73: =IF(G73*H73*E73=0,"",G73*H73*E73) -> 
A74: Hotel Guest Room Occupancy Sensor | C74: Per Ton Per Room | H74: 75 | I74: =IF(G74*H74*E74=0,"",G74*H74*E74) -> 
A75: Hotel Guest Room Occupancy Sensor | C75: Per Ton Per Room | H75: 75 | I75: =IF(G75*H75*E75=0,"",G75*H75*E75) -> 
A76: GREM Incentive | I76: =IF(SUM(I73:I75)=0,"",SUM(I73:I75)) -> 
A78: Variable Speed Drives on HVAC Motors (when adding VSDs where none existed before) | Q78: VSDs
A79: VSD Application Description | B79: VSD Size (HP) (Must be less than 200 HP) | D79: Incentive Unit | F79: Incentive/Unit | H79: Quantity | I79: Incentive | K79: Unitary and Split Air Conditioning Systems | Q79: Equipment Type | R79: Incentive
D80: per HP | F80: =IF(A80="","",_xlfn.XLOOKUP(A80,$Q$81:$Q$86,$R$81:$R$86)) ->  | I80: =IF($A80="","",$B80*$F80*$H80) ->  | K80: Air Source Heat Pumps
D81: per HP | I81: =IF($A81="","",$B81*$F81*$H81) ->  | K81: Chillers: Water-Cooled: Centrifugal | Q81: Supply Fans | R81: 200
D82: per HP | I82: =IF($A82="","",$B82*$F82*$H82) ->  | K82: Chillers: Water-Cooled: Scroll, Screw or Reciprocating | Q82: Return Fans | R82: 175
D83: per HP | K83: Chillers: Air-Cooled | Q83: Cooling Water Pumps | R83: 200
D84: per HP | K84: Packaged Terminal AC | Q84: Hot Water Pumps | R84: 150
D85: per HP | K85: Packaged Terminal HP | Q85: WSHP Circulation Pumps | R85: 250
D86: per HP | K86: Variable Refrigerant Flow HP | Q86: Cooling Tower Fan | R86: 100
D87: per HP
D88: per HP
D89: per HP | K89: < 65,000 Btu/h (5.4 tons)
A90: VSD Incentive | I90: =IF(SUM(I80:I89)=0,"",SUM(I80:I89)) ->  | K90: ≥ 65,000 Btu/h and < 135,000 Btu/h (5.4-11.25 tons)
A91: *The variable speed drive incentive is calculated based on the horsepower (HP) that is actually being controlled, not necessarily the size of the VSD. This section for HVAC only; for VSD's on non-HVAC equipment, use the Custom tab. | K91: ≥ 135,000 Btu/h and < 240,000 Btu/h (11.25-20 tons)
K92: ≥ 240,000 Btu/h and < 760,000 Btu/h (20-63 Tons)
A93: Total HVAC Incentives | H93: =SUM(I57,I76,I90) -> 0 | K93: ≥ 760,000 Btu/h (> 63 tons)
K94: ≤ 75 tons
K95: ≤ 150 tons
K96: > 150 tons
K97: >150 tons and ≤ 300 tons
K98: >300 tons and ≤ 400 tons
K99: > 400 tons and ≤ 600 tons
K100: >600
K101: ALL
S106: Level Normal (2021 V2) | T106: 2021 V2 Rounded | U106: Level Normal (2021 V1) | W106: Level Normal | X106: Incentive | Y106: Bonus | Z106: Level 2 | AA106: Level 3 | AB106: Level 4 | AC106: Min | AD106: Max
S108: 15.00002 | T108: =ROUND(S108,1) -> 15 | U108: 14 | V108: Unitary and Split Air Conditioning Systems< 65,000 Btu/h (5.4 tons) | W108: =T108 -> 15 | X108: 25 | Y108: 15 | Z108: =W108+1 -> 16 | AA108: =Z108+1 -> 17 | AB108: 18 | AC108: 0 | AD108: 5.4
S109: 13.714304 | T109: 13.7 | U109: 12 | V109: Unitary and Split Air Conditioning Systems≥ 65,000 Btu/h and < 135,000 Btu/h (5.4-11.25 tons) | W109: 13.7 | X109: 25 | Y109: 15 | Z109: =W109+1 -> 14.7 | AA109: 15.7 | AB109: 16.7
S110: 13.285732 | T110: 13.3 | U110: 12 | V110: Unitary and Split Air Conditioning Systems≥ 135,000 Btu/h and < 240,000 Btu/h (11.25-20 tons) | W110: 13.3 | X110: 25 | Y110: 15 | Z110: =W110+1 -> 14.3 | AA110: 15.3 | AB110: 16.3 | AC110: 11.25 | AD110: 20
S111: 12.428588 | T111: 12.4 | U111: 10.8 | V111: Unitary and Split Air Conditioning Systems≥ 240,000 Btu/h and < 760,000 Btu/h (20-63 Tons) | W111: 12.4 | X111: 25 | Y111: 15 | Z111: =W108+1 -> 16 | AA111: =Z108+1 -> 17 | AB111: =AA108+1 -> 18 | AC111: 20 | AD111: 63
S112: 12.000016 | T112: 12 | U112: 10.2 | V112: Unitary and Split Air Conditioning Systems≥ 760,000 Btu/h (> 63 tons) | W112: 12 | X112: 25 | Y112: 15 | Z112: =W112+1 -> 13 | AA112: =Z112+1 -> 14 | AB112: 15 | AC112: 63 | AD112: 100000
S113: 15.00002 | T113: 15 | U113: 14 | V113: Air Source Heat Pumps< 65,000 Btu/h (5.4 tons) | W113: 15 | X113: 40 | Y113: 15 | Z113: =W113+1 -> 16 | AA113: 17 | AB113: 18 | AC113: 0 | AD113: 5.4
S114: 12.85716 | T114: 12.9 | U114: 11.6 | V114: Air Source Heat Pumps≥ 65,000 Btu/h and < 135,000 Btu/h (5.4-11.25 tons) | W114: 12.9 | X114: 40 | Y114: 15 | Z114: =W114+1 -> 13.9 | AA114: 14.9 | AB114: 15.9 | AC114: 5.4 | AD114: 11.25
S115: 12.428588 | T115: 12.4 | U115: 11.2 | V115: Air Source Heat Pumps≥ 135,000 Btu/h and < 240,000 Btu/h (11.25-20 tons) | W115: 12.4 | X115: 40 | Y115: 15 | Z115: =W115+1 -> 13.4 | AA115: 14.4 | AB115: 15.4 | AC115: 11.25 | AD115: 20
S116: 11.357158 | T116: 11.4 | U116: 10 | V116: Air Source Heat Pumps≥ 240,000 Btu/h and < 760,000 Btu/h (20-63 Tons) | W116: 11.4 | X116: 40 | Y116: 15 | Z116: =W113+1 -> 16 | AA116: =Z113+1 -> 17 | AB116: =AA113+1 -> 18 | AC116: 20 | AD116: 63
S117: 9.964299 | T117: 10 | U117: 10 | V117: Air Source Heat Pumps≥ 760,000 Btu/h (> 63 tons) | W117: 10 | X117: 40 | Y117: 15 | Z117: =W117+1 -> 11 | AA117: =Z117+1 -> 12 | AB117: =AA117+1 -> 13 | AC117: 63 | AD117: 100000
S118: 0.495 | T118: =S118 -> 0.495 | U118: 0.569 | V118: Chillers: Water-Cooled, Centrifugal***≤ 150 tons | W118: 0.495 | X118: 20 | Y118: 20 | Z118: 0.54 | AA118: =ROUNDUP(W118/0.9*0.7,2) -> 0.39 | AB118: =ROUNDUP(W118/0.9*0.6,2) -> 0.33 | AC118: 0 | AD118: 150
S119: 0.495 | T119: 0.495 | U119: 0.507 | V119: Chillers: Water-Cooled, Centrifugal***>150 tons and ≤ 300 tons | W119: 0.495 | X119: 20 | Y119: 20 | Z119: 0.54 | AA119: 0.39 | AB119: 0.33 | AC119: 150 | AD119: 300
S120: 0.468 | T120: 0.468 | U120: 0.467 | W120: 0.468 | X120: 20 | Y120: 20 | Z120: 0.48 | AA120: 0.37 | AB120: 0.32 | AC120: 300 | AD120: 400
S121: 0.45 | T121: 0.45 | U121: New Size category | V121: Chillers: Water-Cooled, Centrifugal***> 400 tons to ≤ 600 tons | W121: 0.45 | X121: 20 | Y121: 20 | Z121: 0.44 | AA121: 0.35 | AB121: 0.3 | AC121: 400 | AD121: 600
S122: 0.45 | T122: 0.45 | U122: New Size Category | V122: Chillers: Water-Cooled, Centrifugal***> 600 | W122: 0.45 | X122: 20 | Y122: 20 | Z122: 0.42 | AA122: 0.35 | AB122: 0.3 | AC122: 600 | AD122: 10000
S123: 0.54 | T123: 0.54 | U123: 0.592 | V123: Chillers: Water-Cooled: ReciprocatingALL | W123: 0.54 | X123: 20 | Y123: 20 | Z123: 0.54 | AA123: 0.42 | AB123: 0.36 | AC123: 0 | AD123: 75
S124: 0.54 | T124: 0.54 | U124: New Size Category | V124: Chillers: Water Cooled Scroll, Helical-Rotary or Reciprocating***≤ 75 tons | W124: 0.54 | X124: 20 | Y124: 20 | Z124: 0.54 | AA124: 0.42 | AB124: 0.36 | AC124: 0 | AD124: 75
S125: 0.504 | T125: 0.504 | U125: 0.575 | V125: Chillers: Water Cooled Scroll, Helical-Rotary or Reciprocating***> 75 tons and ≤ 150 tons | W125: 0.504 | X125: 20 | Y125: 20 | Z125: 0.54 | AA125: 0.4 | AB125: 0.34 | AC125: 75 | AD125: 150
S126: 0.486 | T126: 0.486 | U126: 0.534 | V126: Chillers: Water Cooled Scroll, Helical-Rotary or Reciprocating***>150 tons and ≤ 300 tons | W126: 0.486 | X126: 20 | Y126: 20 | Z126: 0.5 | AA126: 0.38 | AB126: 0.33 | AC126: 150 | AD126: 300 | AP126: Chillers: Air-Cooled | AQ126: Unitary and Split Air Conditioning Systems | AR126: Chillers: Water Cooled Scroll, Helical-Rotary or Reciprocating*** | AS126: Chillers: Water-Cooled, Centrifugal*** | AT126: Air Source Heat Pumps | AU126: Variable Refrigerant Flow HP | AV126: Packaged Terminal AC | AW126: Packaged Terminal HP | AX126: Computer Room Air Conditioners
S127: 0.468 | T127: 0.468 | U127: 0.486 | V127: Chillers: Water Cooled Scroll, Helical-Rotary or Reciprocating***> 300 tons and ≤ 600 tons | W127: 0.468 | X127: 20 | Y127: 20 | Z127: 0.46 | AA127: 0.37 | AB127: 0.32 | AC127: 300 | AD127: 600 | AP127: ≤ 150 | AQ127: < 65,000 Btu/h (5.4 tons) | AR127: ≤ 75 tons | AS127: ≤ 150 tons | AT127: < 65,000 Btu/h (5.4 tons) | AU127: < 65,000 Btu/h (5.4 tons) | AV127: ALL | AW127: ALL | AX127: < 65,000 Btuh
S128: 0.45 | T128: 0.45 | U128: New Size Category | V128: Chillers: Water Cooled Scroll, Helical-Rotary or Reciprocating***> 600 tons | W128: 0.45 | X128: 20 | Y128: 20 | Z128: 0.42 | AA128: 0.35 | AB128: 0.3 | AC128: 600 | AD128: 10000 | AP128: > 150 | AQ128: ≥ 65,000 Btu/h and < 135,000 Btu/h (5.4-11.25 tons) | AR128: > 75 tons and ≤ 150 tons | AS128: >150 tons and ≤ 300 tons | AT128: ≥ 65,000 Btu/h and < 135,000 Btu/h (5.4-11.25 tons) | AU128: ≥ 65,000 Btu/h and < 135,000 Btu/h (5.4-11.25 tons) | AX128: ≥ 65,000 Btuh to < 240,000 Btuh
S129: 0.788 | T129: 0.788 | U129: 0.867 | V129: Chillers: Air-Cooled≤ 150 | W129: 0.788 | X129: 40 | Y129: 20 | Z129: =ROUND(W129/0.9*0.8,2) -> 0.7 | AA129: 0.62 | AB129: 0.53 | AC129: 0 | AD129: 150 | AQ129: ≥ 135,000 Btu/h and < 240,000 Btu/h (11.25-20 tons) | AR129: >150 tons and ≤ 300 tons | AS129: > 300 tons to ≤ 400 tons | AT129: ≥ 135,000 Btu/h and < 240,000 Btu/h (11.25-20 tons) | AU129: ≥ 135,000 Btu/h and < 240,000 Btu/h (11.25-20 tons) | AX129: ≥ 240,000
S130: 0.771 | T130: 0.771 | U130: 0.867 | V130: Chillers: Air-Cooled> 150 | W130: 0.771 | X130: 40 | Y130: 20 | Z130: =ROUND(W130/0.9*0.8,2) -> 0.69 | AA130: 0.6 | AB130: 0.52 | AC130: 150 | AD130: 100000 | AQ130: ≥ 240,000 Btu/h and < 760,000 Btu/h (20-63 Tons) | AR130: > 300 tons and ≤ 600 tons | AS130: > 400 tons to ≤ 600 tons | AT130: ≥ 240,000 Btu/h and < 760,000 Btu/h (20-63 Tons) | AU130: ≥ 240,000 Btu/h (20 Tons)
S131: =14.5-(0.3*_xlfn.IFNA(INDEX($A$43:$I$56,MATCH("Packaged Terminal AC",$E$43:$E$56,0),2),0)*12000/1000) -> 14.5 | T131: 14.5 | U131: =12.5-(0.213*B43*12000/1000) -> 12.5 | V131: Packaged Terminal ACALL | W131: 14.5 | X131: 50 | Y131: 0 | Z131: =W131+1 -> 15.5 | AA131: =Z131+1 -> 16.5 | AB131: 17.5 | AC131: 0 | AD131: 100000 | AQ131: ≥ 760,000 Btu/h (> 63 tons) | AR131: > 600 tons | AS131: > 600
S132: =14.5-(0.3*_xlfn.IFNA(INDEX($A$43:$I$56,MATCH("Packaged Terminal HP",$E$43:$E$56,0),2),0)*12000/1000) -> 14.5 | T132: 14.5 | U132: =12.3-(0.213*B44*12000/1000) -> 12.3 | V132: Packaged Terminal HPALL | W132: 14.5 | X132: 100 | Y132: 0 | Z132: 15.5 | AA132: 16.5 | AB132: 17.5 | AC132: 0 | AD132: 100000
S133: 15.428592 | T133: =ROUND(S133,1) -> 15.4 | U133: 14.8 | V133: Variable Refrigerant Flow HP≥ 65,000 Btu/h and < 135,000 Btu/h (5.4-11.25 tons) | W133: 15.4 | X133: 40 | Y133: 25 | Z133: 16.4 | AA133: 17.4 | AB133: 18.4 | AC133: 5.4 | AD133: 11.25
S134: 14.678591 | T134: 14.7 | U134: 14.2 | V134: Variable Refrigerant Flow HP≥ 135,000 Btu/h and < 240,000 Btu/h (11.25-20 tons) | W134: 14.7 | X134: 40 | Y134: 25 | Z134: 15.7 | AA134: 16.7 | AB134: 17.7 | AC134: 11.25 | AD134: 20
S135: 13.392875 | T135: 13.4 | U135: 12.7 | V135: Variable Refrigerant Flow HP≥ 240,000 Btu/h (20 Tons) | W135: 13.4 | X135: 40 | Y135: 25 | Z135: 14.4 | AA135: 15.4 | AB135: 16.4 | AC135: 20 | AD135: 63
S136: 13.92859 | T136: 13.9 | U136: 15.6 | V136: Variable Refrigerant Flow HP< 65,000 Btu/h (5.4 tons) | W136: 13.9 | X136: 40 | Y136: 25 | Z136: 14.9 | AA136: 15.9 | AB136: 16.9 | AC136: 63 | AD136: 100000
S137: 8.184 | T137: 8.2 | V137: Computer Room Air Conditioners< 65,000 Btuh | W137: 8.2 | X137: 0.008 | Y137: 0 | Z137: 9.2 | AA137: 10.2 | AB137: 11.2 | AC137: 0 | AD137: 65000
S138: 7.502 | T138: 7.5 | V138: Computer Room Air Conditioners≥ 65,000 Btuh to < 240,000 Btuh | W138: 7.5 | X138: 0.008 | Y138: 0 | Z138: 8.5 | AA138: 9.5 | AB138: 10.5 | AC138: 65000 | AD138: 240000 | AL138: Categories | AM138: Column1 | AN138: Column2
S139: 7.161 | T139: 7.2 | V139: Computer Room Air Conditioners≥ 240,000 | W139: 7.2 | X139: 0.008 | Y139: 0 | Z139: 8.2 | AA139: 9.2 | AB139: 10.2 | AC139: 240000 | AD139: 10000000 | AL139: Unitary and Split Air Conditioning Systems | AM139: UnitarySplit | AN139: 1
AL140: Air Source Heat Pumps | AM140: AirSourceHP | AN140: 2
Z141: **used stated values for Level 2, if available. Else was rounded up to the 10s of watts | AL141: Variable Refrigerant Flow HP | AM141: VRF | AN141: 3
W142: 2.4 | X142: =W142*3.41 -> 8.184 | AL142: Chillers: Water Cooled Scroll, Helical-Rotary or Reciprocating*** | AM142: ChillerHelical | AN142: 4
W143: 2.2 | X143: =W143*3.41 -> 7.502 | AL143: Chillers: Water-Cooled, Centrifugal*** | AM143: ChillerCent | AN143: 5
W144: 2.1 | X144: =W144*3.41 -> 7.161 | AL144: Chillers: Air-Cooled | AM144: ChillerAir | AN144: 6
AL145: Packaged Terminal AC | AM145: PTAC | AN145: 7
AL146: Packaged Terminal HP | AM146: PTHP | AN146: 8
AL147: Computer Room Air Conditioners | AM147: CRAC | AN147: 9
AL150: Test, Category | AM150: Test, Dropdown
AL151: Computer Room Air Conditioner | AM151: < 65,000 Btuh

Sheet Food Service
B1: FOOD SERVICE INCENTIVES
A2: Applicant: fill in gray fields | G2: See spec sheets at the bottom of the page!
A3: ENERGY STAR® Ovens & Fryers
A4: Equipment Type | F4: Incentive Unit | G4: Incentive/Unit | I4: # of Units | J4: Incentive | M4: kWh/Unit | N4: kWh Savings
A5: Combination Oven - Full Size | F5: Unit | G5: 800 | J5: =IF(ISBLANK(I5),"",I5*G5) ->  | M5: 6368 | N5: =M5*I5 -> 0
A6: Convection Oven - Half Size | F6: Unit | G6: 100 | M6: 3043 | N6: 0
A7: Convection Oven - Full Size < 5 pans | F7: Unit | G7: 300 | M7: 4633 | N7: 0
A8: Convection Oven - Full size ≥ 5 pans | F8: Unit | G8: 350 | M8: 244 | N8: 0
A9: Commercial Vat Fryer - Standard | F9: Unit | G9: 250 | M9: 3272 | N9: 0
A10: Commercial Vat Fryer - Large | F10: Unit | G10: 300 | M10: 2696 | N10: 0
A11: Ovens & Fryers Incentive | J11: =SUM(J5:K10) -> 0
A13: ENERGY STAR® Steam Cookers
A14: Equipment Type | F14: Incentive Unit | G14: Incentive/Unit | I14: # of Units | J14: Incentive
A15: Boiler Based - 3 Pan | F15: Unit | G15: 1200 | J15: =IF(ISBLANK(I15),"",I15*G15) ->  | M15: 11784 | N15: =M15*I15 -> 0
A16: Boiler Based - 4 Pan | F16: Unit | G16: 1400 | M16: 14553 | N16: 0
A17: Boiler Based - 5 Pan | F17: Unit | G17: 1600 | M17: 17268 | N17: 0
A18: Boiler Based - ≥6 Pan | F18: Unit | G18: 1800 | M18: 19990 | N18: 0
A19: Steam Generator - 3 Pan | F19: Unit | G19: 800 | M19: 9967 | N19: 0
A20: Steam Generator - 4 Pan | F20: Unit | G20: 900 | M20: 12107 | N20: 0
A21: Steam Generator - 5 Pan | F21: Unit | G21: 1000 | M21: 14186 | N21: 0
A22: Steam Generator - ≥6 Pan | F22: Unit | G22: 1200 | M22: 16270 | N22: 0
A23: Steam Coookers Incentive | J23: =SUM(J15:K22) -> 0
A25: ENERGY STAR® Hot Food Holding Cabinet
A26: Equipment Type | F26: Incentive Unit | G26: Incentive/Unit | I26: # of Units | J26: Incentive
A27: Half size | F27: Unit | G27: 125 | J27: =IF(ISBLANK(I27),"",I27*G27) ->  | M27: 1215 | N27: =M27*I27 -> 0
A28: Three-quarter size | F28: Unit | G28: 300 | J28: =IF(ISBLANK(I28),"",I28*G28) ->  | M28: 2770 | N28: =M28*I28 -> 0
A29: Full-size | F29: Unit | G29: 500 | J29: =IF(ISBLANK(I29),"",I29*G29) ->  | M29: 4832 | N29: =M29*I29 -> 0
A30: Hot Food Holding Cabinets Incentive | J30: =SUM(J27:K29) -> 0
A32: ENERGY STAR® High Efficiency Ice Makers
A33: Equipment Type | F33: Installed kWk/100 lbs | G33: Incentive/Unit | I33: # of Units | J33: Incentive
A34: 150 lb/24 hours | F34: Unit | G34: 100 | J34: =IF(ISBLANK(I34),"",I34*G34) ->  | M34: 401 | N34: =M34*I34 -> 0
A35: 250 lb/24 hours | F35: Unit | G35: 125 | M35: 469 | N35: 0
A36: 350 lb/24 hours | F36: Unit | G36: 150 | M36: 357 | N36: 0
A37: 450 lb/24 hours | F37: Unit | G37: 150 | M37: 440 | N37: 0
A38: 750 lb/24 hours | F38: Unit | G38: 200 | M38: 850 | N38: 0
A39: 1500 lb/24 hours | F39: Unit | G39: 250 | M39: 1436 | N39: 0
A40: High Efficiency Ice Makers Incentive | J40: =SUM(J34:K39) -> 0
A42: Total Food Service Equipment Incentives | J42: =SUM(J5:K10,J15:K22,J27:K29,J34:K39) -> 0
A43: I certify that I have not already received an 'at the counter' rebate from a participating distributor for the equipment listed above. I understand that if I have already received a rebate that this application will be cancelled.

Sheet Refrigeration
A1: REFRIGERATION INCENTIVES
A2: Applicant: fill in gray fields
A3: Refrigeration
A4: Measures | D4: Incentive Unit | F4: Incentive/Unit | H4: # of Units | I4: Incentive
A6: Night Covers for Displays | D6: Linear Foot of Case | F6: 10 | I6: =F6*ROUND(H6,0) -> 0
A7: Anti-Sweat Heater Controls | D7: Linear Foot of Case | F7: 30 | I7: =F7*ROUND(H7,0) -> 0
A8: LED Refrigerated Case Lighting | D8: Linear Foot of Case | F8: 10 | I8: =F8*ROUND(H8,0) -> 0
A9: LED Freezer Case Lighting | D9: Linear Foot of Case | F9: 10 | I9: =F9*H9 -> 0
A10: Zero Energy Doors | D10: Door | F10: 130 | I10: =F10*H10 -> 0
A11: Automatic Door Closer Freezer Cases | D11: Door | F11: 100 | I11: =F11*H11 -> 0
A12: Automatic Door Closer Cooler Cases | D12: Door | F12: 100 | I12: =F12*H12 -> 0
A13: EC Motor for Reach-in Refrigerator Cases | D13: Motor | F13: 60 | I13: =F13*H13 -> 0
A14: EC Motor for Reach-in Freezer Cases | D14: Motor | F14: 70 | I14: =F14*H14 -> 0
A15: EC Motor for Walk-in Refrigerator Cases | D15: Motor | F15: 110 | I15: 0
A16: EC Motor for Walk-in Freezer Cases | D16: Motor | F16: 120 | I16: 0
A17: Evaporator Fan Controls on EC Motor | C17: [select motor size] | D17: Motor | F17: 100 | I17: =IF(C17="[Select motor size]","",F17*H17) -> 
A18: Q-Sync Motors (9 - 12W) | B18: [select temp] | C18: [select motor type] | D18: Motor | F18: 50 | I18: =IF(OR(B18="[Select temp]",C18="[Select motor type]"),"",F18*H18) -> 
A19: Q-Sync Motors (38 - 50W) | B19: [select temp] | C19: [select motor type] | D19: Motor | F19: 50 | I19: =IF(OR(B19="[Select temp]",C19="[Select motor type]"),"",F19*H19) -> 
A20: Refrigeration Incentive | I20: =SUM(I6:I19) -> 0
A21: * A small walk-in cooler and freezer has a doorway that is less than 50 square feet; a large walk-in cooler and freezer has a doorway that is greater than 50 square feet.

Sheet Pool Pumps
A1: POOL PUMP INCENTIVES | R1: Note: Motors were removed
A2: Applicant: fill in gray fields at bottom | G2: See specs at the bottom of the page! | R2: Note: VSDs:added Equipment type and new incentive levels
A3: Pool Pump (0.5 - 3 HP) | R3: Equipment Type | S3: Incentive
A5: Pump Type | F5: Incentive Unit | G5: Incentive/Unit | I5: Quantity | J5: Incentive | R5: Supply Fans | S5: 175
A6: Energy Star Pump - In-ground | F6: Unit | G6: 100 | J6: =IF(ISBLANK(I6),"",G6*I6) ->  | R6: Return Fans | S6: 150
A7: CEE Tier 1* Pump - In-ground | F7: Unit | G7: 100 | H7: 100 | J7: =IF(ISBLANK(I7),"",G7*I7) ->  | R7: Cooling Water Pumps | S7: 175
A8: Energy Star Pump - Above Ground | F8: Unit | G8: 100 | H8: 100 | R8: Hot Water Pumps | S8: 125
A9: CEE Tier 1* Pump - Above Ground | F9: Unit | G9: 100 | J9: =IF(ISBLANK(I9),"",G9*I9) ->  | R9: WSHP Circulation Pumps | S9: 225
A10: Pool Pumps Incentive | J10: =SUM(J6:J9) -> 0 | R10: Cooling Tower Fan | S10: 75
A11: * If BOTH Energy Star and CEE Tier 1 certified, use the CEE Tier 1 line item(s).
L12: =J10 -> 0
L15: kWh
L16: =1757*#REF!*#REF! -> 
L27: =#REF! ->  | R27: ENERGYSTAR Pool Pump Assumptions | AA27: Incentive | AB27: $/kWh | AD27: ES
L28: =L27+L12 ->  | R28: Rated Hp | S28: Hours, HighSpeed | T28: Hours, LowSpeed | U28: PFR, HighSpeed | V28: EF, HighSpeed | W28: PFR, LowSpeed | X28: EF, LowSpeed | Y28: kWh, ENERGYSTAR | AD28: Yes
R29: <1.25 | S29: 4.3 | T29: 9.7 | U29: 56 | V29: 2.398 | W29: 31 | X29: 5.407 | Y29: =+((U29*60*#REF!*365)/(V29*1000))+((W29*60*#REF!*365)/(X29*1000)) ->  | AA29: 120 | AB29: =+AA29/X29 -> 22.19345293 | AD29: No
R30: 1.25 < HP <1.75 | T30: 0.2085 | U30: 61 | V30: 2.267 | W30: 31.9 | X30: 5.433 | Y30: =+((U30*60*#REF!*365)/(V30*1000))+((W30*60*#REF!*365)/(X30*1000)) ->  | AA30: =+AA29+20 -> 140 | AB30: =+AA30/X30 -> 25.76845205
R31: 1.75 < HP <2.25 | T31: 0.2516 | U31: 66.4 | V31: 1.951 | W31: 33.3 | X31: 5.221 | Y31: =+((U31*60*#REF!*365)/(V31*1000))+((W31*60*#REF!*365)/(X31*1000)) ->  | AA31: =+AA30+20 -> 160 | AB31: =+AA31/X31 -> 30.64547022
R32: 2.25 < HP <2.75 | T32: 0.3081 | U32: 66 | V32: 2.024 | W32: 34 | X32: 4.796 | Y32: =+((U32*60*#REF!*365)/(V32*1000))+((W32*60*#REF!*365)/(X32*1000)) ->  | AA32: =+AA31+20 -> 180 | AB32: =+AA32/X32 -> 37.53127606
R33: 2.75 < HP <3.00 | T33: 0.3639 | U33: 74 | V33: 1.617 | W33: 37 | X33: 4.764 | Y33: =+((U33*60*#REF!*365)/(V33*1000))+((W33*60*#REF!*365)/(X33*1000)) ->  | AA33: =+AA32+20 -> 200 | AB33: =+AA33/X33 -> 41.98152813

Sheet Industrial
A1: INDUSTRIAL INCENTIVES
A2: Applicant: fill in gray fields
A3: Compressed Air Storage Receiver Tanks
A4: Equipment Size Category | E4: Incentive Unit | F4: Incentive/Unit | G4: Horsepower (HP) | H4: # of Units | I4: Incentive
A5: ≤50 HP | E5: HP | F5: 40 | I5: =IF(ISBLANK(H5),"",F5*G5*H5) -> 
A6: 51-200 HP | E6: HP | F6: 40 | I6: =IF(ISBLANK(H6),"",F6*G6*H6) -> 
A7: Efficient Compressor Air Nozzles Incentive | I7: =SUM(I5:I6) -> 0
A9: Efficient Compressed Air Nozzles
A10: Equipment Type | F10: Incentive Unit | G10: Incentive/Unit | H10: # of Units | I10: Incentive
A11: 1/8'' - Reciprocrating - On/off Control | F11: Unit | G11: 42 | I11: =IF(ISBLANK(H11),"",H11*G11) -> 
A12: 1/8'' - Reciprocrating - Load/Unload | F12: Unit | G12: 42 | I12: =IF(ISBLANK(H12),"",H12*G12) -> 
A13: 1/8'' - Screw - Load/Unload/Variable Displacement | F13: Unit | G13: 42
A14: 1/8'' - Screw - Inlet Modulation | F14: Unit | G14: 42
A15: 1/8'' - Screw - VFD | F15: Unit | G15: 42
A16: 1/4'' - Reciprocrating - On/off Control | F16: Unit | G16: 57
A17: 1/4'' - Reciprocrating - Load/Unload | F17: Unit | G17: 57
A18: 1/4'' - Screw - Load/Unload/Variable Displacement | F18: Unit | G18: 57
A19: 1/4'' - Screw - Inlet Modulation | F19: Unit | G19: 57
A20: 1/4'' - Screw - VFD | F20: Unit | G20: 57
A21: 5/16'' - Reciprocrating - On/off Control | F21: Unit | G21: 87
A22: 5/16'' - Reciprocrating - Load/Unload | F22: Unit | G22: 87
A23: 5/16'' - Screw - Load/Unload/Variable Displacement | F23: Unit | G23: 87
A24: 5/16'' - Screw - Inlet Modulation | F24: Unit | G24: 87
A25: 5/16'' - Screw - VFD | F25: Unit | G25: 87
A26: 1/2'' - Reciprocrating - On/off Control | F26: Unit | G26: 121
A27: 1/2'' - Reciprocrating - Load/Unload | F27: Unit | G27: 121
A28: 1/2'' - Screw - Load/Unload/Variable Displacement | F28: Unit | G28: 121
A29: 1/2'' - Screw - Inlet Modulation | F29: Unit | G29: 121
A30: 1/2'' - Screw - VFD | F30: Unit | G30: 121
A31: Efficient Compressor Air Nozzles Incentive | I31: =SUM(I11:I30) -> 0
A33: VSD Air Compressors
A34: Equipment Type | E34: Incentive Unit | F34: Incentive/Unit | G34: Horsepower (HP) | H34: # of Units | I34: Incentive
A35: Modulating w/ Blowdown <= 50 hp | E35: Per HP | F35: 80 | I35: =IF(ISBLANK(H35),"",F35*G35*H35) -> 
A36: Load/No Load w/ 1 Gallon/CFM <= 50 hp | E36: Per HP | F36: 80 | I36: =IF(ISBLANK(H36),"",F36*G36*H36) -> 
A37: Load/No Load w/ 3 Gallon/CFM <= 50 hp | E37: Per HP | F37: 80
A38: Load/No Load w/ 5 Gallon/CFM <= 50 hp | E38: Per HP | F38: 80
A39: Modulating w/ Blowdown 51-200 hp | E39: Per HP | F39: 100
A40: Load/No Load w/ 1 Gallon/CFM 51-200 hp | E40: Per HP | F40: 100
A41: Load/No Load w/ 3 Gallon/CFM 51-200 hp | E41: Per HP | F41: 100
A42: Load/No Load w/ 5 Gallon/CFM 51-200 hp | E42: Per HP | F42: 100
A43: VSD Air Compressor Incentive | I43: =SUM(I35:I42) -> 0
A45: Efficient Desiccant Compressed Air Dryers
A46: Equipment Type | E46: Incentive Unit | F46: Incentive/Unit | G46: CFM | H46: # of Units | I46: Incentive
A47: Heated - Reciprocating - On/off Control | E47: per CFM | F47: 3 | I47: =IF(ISBLANK(H47),"",F47*G47*H47) -> 
A48: Heated - Reciprocating - Load/Unload | E48: per CFM | F48: 3 | I48: =IF(ISBLANK(H48),"",F48*G48*H48) -> 
A49: Heated - Screw - Load/Unload or Variable Displacement | E49: per CFM | F49: 3
A50: Heated - Screw - VFD | E50: per CFM | F50: 3
A51: Blower Purge w/Compressed Air Cooling - Reciprocating - On/off Control | E51: per CFM | F51: 5
A52: Blower Purge w/Compressed Air Cooling - Reciprocating - Load/Unload | E52: per CFM | F52: 5
A53: Blower Purge w/Compressed Air Cooling - Screw - Load/Unload or Variable Displacement | E53: per CFM | F53: 5
A54: Blower Purge w/Compressed Air Cooling - Screw - VFD | E54: per CFM | F54: 5
A55: Blower Purge "Zero Purge" - Reciprocating - On/off Control | E55: per CFM | F55: 7
A56: Blower Purge "Zero Purge" - Reciprocating - Load/Unload | E56: per CFM | F56: 7
A57: Blower Purge "Zero Purge" - Screw - Load/Unload or Variable Displacement | E57: per CFM | F57: 7
A58: Blower Purge "Zero Purge" - Screw - VFD | E58: per CFM | F58: 7
A59: Efficient Desiccant Compressed Air Dryer Incentive | I59: =SUM(I47:I58) -> 0
A61: Desiccant Dryer Dew Point Demand Controls
A62: Equipment Type | E62: Incentive Unit | F62: Incentive/Unit | G62: CFM | H62: # of Units | I62: Incentive
A63: Heatless - Reciprocating - On/off Control | E63: per CFM | F63: 6 | I63: =IF(ISBLANK(H63),"",F63*G63*H63) -> 
A64: Heatless - Reciprocating - Load/Unload | E64: per CFM | F64: 6 | I64: =IF(ISBLANK(H64),"",F64*G64*H64) -> 
A65: Heatless - Screw - Load/Unload or Variable Displacement | E65: per CFM | F65: 6 | I65: =IF(ISBLANK(H65),"",F65*G65*H65) -> 
A66: Heatless - Screw - VFD | E66: per CFM | F66: 6 | I66: =IF(ISBLANK(H66),"",F66*G66*H66) -> 
A67: Externally-Heated - Reciprocating - On/off Control | E67: per CFM | F67: 6
A68: Externally-Heated - Reciprocating - Load/Unload | E68: per CFM | F68: 6
A69: Externally-Heated - Screw - Load/Unload or Variable Displacement | E69: per CFM | F69: 6
A70: Externally-Heated - Screw - VFD | E70: per CFM | F70: 6
A71: Blower Purge - Reciprocating - On/off Control | E71: per CFM | F71: 6
A72: Blower Purge - Reciprocating - Load/Unload | E72: per CFM | F72: 6
A73: Blower Purge - Screw - Load/Unload or Variable Displacement | E73: per CFM | F73: 6
A74: Blower Purge - Screw - VFD | E74: per CFM | F74: 6
A75: Desiccant Dryer Dew Point Demand Controls Incentive | I75: =SUM(I63:I74) -> 0
A77: Efficient Refrigerated Compressed Air Dryers
A78: Equipment Type | E78: Incentive Unit | F78: Incentive/ Unit | G78: CFM | H78: # of Units | I78: Incentive
A79: Thermal-Mass | E79: Per CFM | F79: 1 | I79: =IF(ISBLANK(H79),"",F79*G79*H79) -> 
A80: VSD | E80: Per CFM | F80: 1 | I80: =IF(ISBLANK(H80),"",F80*G80*H80) -> 
A81: Digital Scroll | E81: Per CFM | F81: 1
A82: Efficient Refrigerated Compressed Air Dryer Incentive | I82: =SUM(I79:I81) -> 0
A84: High Frequency Battery Chargers
A85: Shift | E85: Incentive Unit | G85: Incentive/Unit | H85: Quantity | I85: Incentive
A86: 1-shift (8 hr/day) | E86: Per Unit | G86: 400 | I86: =IF(H86="","",G86*H86) -> 
A87: 2-shift (16 hr/day) | E87: Per Unit | G87: 400 | I87: =IF(H87="","",G87*H87) -> 
A88: 3-shift (24 hr/day) | E88: Per Unit | G88: 400
A89: 4-shift (24 hr/day) | E89: Per Unit | G89: 400
A90: High Frequency Batter Chargers Incentive | I90: =SUM(I86:I89) -> 0
A91: *Must have a minimum Power Conversion Efficiency of 90%, and a minimum 8-hour shift operation, five days per week.
A93: Lithium Ion Forklift Batteries
A94: Shift | E94: Incentive Unit | G94: Incentive/Unit | H94: Quantity | I94: Incentive
A95: 1-shift (8 hr/day) | E95: Per Unit | G95: 5000 | I95: =IF(H95="","",G95*H95) -> 
A96: 2-shift (16 hr/day) | E96: Per Unit | G96: 5000 | I96: =IF(H96="","",G96*H96) -> 
A97: 3-shift (24 hr/day) | E97: Per Unit | G97: 5000
A98: 4-shift (24 hr/day) | E98: Per Unit | G98: 5000
A99: High Frequency Batter Chargers Incentive | I99: =SUM(I95:I98) -> 0
A100: *Class I, II, or III forklifts powered by a lithium ion battery, and a minimum 8-hour shift operation, five days per week.
A102: Total Industrial Incentives | I102: =SUM(I7,I31,I43,I59,I75,I82,I90,I99) -> 0

Sheet Miscellaneous
A1: MISCELLANEOUS INCENTIVES
A2: Applicant: fill in gray fields
A3: Window Film (Must have 10% lower Shading Coeffient than pre-existing shading type; see spec for details. Pre-application required) | P3: Cooling Solar Heat Gain [Btu/ft2-year] | U3: Shading Type | V3: Shading Coefficient | X3: Cooling Efficiency* [SEER] | Y3: Cooling Efficiency* [EER]
A4: Region | B4: Orientation | C4: Cooling Solar Heat Gain [Btu/ft2-year] | D4: Area of Window Film [ft2] | E4: Incentive/ft2 | F4: Existing Shading Type | G4: Pre-Existing Shading Coefficient | H4: New Shading Coefficient | I4: Incentive | K4: Energy Savings [KWh] | L4: Peak Hour Solar Heat Gain [Btu/hr-ft2-year] | M4: Demand Savings [KW] | O4: Orientation | P4: Central - NM | Q4: South - NM | R4: Roswell | S4: North - NM | U4: Single-Pane - None | V4: 0.93 | X4: 12.64 | Y4: 10.17
C5: =_xlfn.IFNA(INDEX($P$5:$S$12,MATCH(B5,$O$5:$O$12,0),MATCH(A5,$P$4:$S$4,0)),"") ->  | E5: 1.2 | G5: =_xlfn.IFNA(_xlfn.XLOOKUP($F5,$U$4:$U$13,$V$4:$V$13,"",0),"") ->  | I5: =IFERROR(IF($H5<=($G5-(0.1*$G5)),IF(OR($D5=0,$K5="",$M5=""),"",$D5*$E5),0),"") ->  | K5: =IF(OR(A5="",B5="",D5="",H5=""),"",IFERROR((D5*C5*(G5-H5))/($X$4*1000),"")) ->  | L5: =_xlfn.IFNA(INDEX($P$16:$S$23,MATCH(B5,$O$16:$O$23,0),MATCH(A5,$P$15:$S$15,0)),"") ->  | M5: =IF(OR(D5="",H5=""),"",IFERROR((D5*L5*(G5-H5))/($Y$4*1000),"")) ->  | O5: North | P5: 67108 | Q5: 69897 | R5: 68618 | S5: 67995 | U5: Single-Pane- Roller Shade | V5: 0.6
E6: 1.2 | I6: =IFERROR(IF($H6<=($G6-(0.1*$G6)),IF(OR($D6=0,$K6="",$M6=""),"",$D6*$E6),0),"") ->  | K6: =IF(OR(A6="",B6="",D6="",H6=""),"",IFERROR((D6*C6*(G6-H6))/($X$4*1000),"")) ->  | M6: =IF(OR(D6="",H6=""),"",IFERROR((D6*L6*(G6-H6))/($Y$4*1000),"")) ->  | O6: North-East | P6: 102259 | Q6: 103459 | R6: 98399 | S6: 103426 | U6: Single-Pane - Louvered Interior shades | V6: 0.56
E7: 1.2 | O7: East | P7: 145112 | Q7: 141559 | R7: 137424 | S7: 145519 | U7: Single-Pane - Draperies -- Open Weave | V7: 0.67
E8: 1.2 | O8: South-East | P8: 148340 | Q8: 141019 | R8: 140248 | S8: 147647 | U8: Single-Pane - Draperies -- Closed Weave | V8: 0.56
E9: 1.2 | O9: South | P9: 132595 | Q9: 126016 | R9: 126800 | S9: 129217 | U9: Double-Pane - None | V9: 0.8
E10: 1.2 | O10: South-West | P10: 140262 | Q10: 139677 | R10: 139550 | S10: 134108 | U10: Double-Pane- Roller Shade | V10: 0.62
E11: 1.2 | O11: West | P11: 133326 | Q11: 139363 | R11: 137442 | S11: 127718 | U11: Double-Pane - Louvered Interior shades | V11: 0.58
E12: 1.2 | O12: North-West | P12: 93741 | Q12: 100581 | R12: 99132 | S12: 91707 | U12: Double-Pane - Draperies -- Open Weave | V12: 0.64
E13: 1.2 | U13: Double-Pane - Draperies -- Closed Weave | V13: 0.58
E14: 1.2 | P14: Peak Hour Solar Heat Gain [Btu/hr-ft2-year]
E15: 1.2 | O15: Orientation | P15: Central - NM | Q15: South - NM | R15: Roswell | S15: North - NM
E16: 1.2 | O16: North | P16: 37 | Q16: 39 | R16: 38 | S16: 37
A17: Window Film Incentive | I17: =SUM($I$5:$I$16) -> 0 | O17: North-East | P17: 55 | Q17: 55 | R17: 53 | S17: 56
A18: *Cooling efficiency is a weighted average of HVAC cooling part load system efficiency of commercial buldings. | O18: East | P18: 71 | Q18: 70 | R18: 67 | S18: 73
O19: South-East | P19: 64 | Q19: 61 | R19: 60 | S19: 65
A20: Low-flow Showerheads (w/Electric Water Heaters) | O20: South | P20: 50 | Q20: 46 | R20: 48 | S20: 49
A21: Flow (GPM) | C21: Incentive/Unit | F21: Flow (GPM) | G21: Incenitve/Unit | O21: South-West | P21: 58 | Q21: 59 | R21: 60 | S21: 54
A22: 1.5 | C22: 7 | F22: 2 | G22: 5 | O22: West | P22: 63 | Q22: 67 | R22: 67 | S22: 58
A23: Flow (GPM) | E23: Incentive Unit | F23: # of Units | G23: Incentive | O23: North-West | P23: 49 | Q23: 53 | R23: 53 | S23: 46
E24: Unit | G24: =IF(ISBLANK(F24),"",IF(A24=1.5,7,IF(A24=2,5,""))*F24) -> 
E25: Unit | G25: =IF(ISBLANK(F25),"",IF(A25=1.5,7,IF(A25=2,5,""))*F25) -> 
E26: Unit
E27: Unit
E28: Unit
E29: Unit
A30: Low-flow Showerheads Incentive | G30: =SUM(G24:I29) -> 0
A32: Low-flow Faucets Aerators (w/Electric Water Heaters)
A33: Flow (GPM) | C33: Incentive/Unit | F33: Flow (GPM) | G33: Incenitve/Unit | O33: South-West | P33: 58 | Q33: 59 | R33: 60 | S33: 54
A34: 0.5 | C34: 10 | F34: 1 | G34: 8 | O34: West | P34: 63 | Q34: 67 | R34: 67 | S34: 58
A35: Flow (GPM) | E35: Incentive Unit | F35: # of Units | G35: Incentive
E36: Unit | G36: =IF(ISBLANK(F36),"",IF(A36=0.5,10,IF(A36=1,8,""))*F36) -> 
E37: Unit | G37: =IF(ISBLANK(F37),"",IF(A37=1.5,7,IF(A37=2,5,""))*F37) -> 
E38: Unit
E39: Unit
E40: Unit
E41: Unit
A42: Low-flow Showerheads Incentive | G42: =SUM(G36:I41) -> 0
A44: Total Miscellaneous Incentives | H44: =SUM(I17,G30,G42) -> 0

Sheet Custom
D1: CUSTOM INCENTIVES | G1: See specs at the bottom of the page!
A2: Applicant: fill in gray fields | D2: *Please attach supporting documentation as described in the specifications*
A3: Item 1
A4: Description | H4: $/kWh | I4: Subtotal
E5: Annual kWh Savings | H5: 0.08 | I5: =IF(AND(G5>0,G11>0,G13>0),MIN(G5*H5,G11,0.5*G13),0) -> 0
E7: kW Savings
E9: Annual Operating Hours
E11: Incremental Measure Cost
E13: Total Project Cost
A15: Item 2
A16: Description | H16: $/kWh | I16: Subtotal
E17: Annual kWh Savings | H17: 0.08 | I17: =IF(AND(G17>0,G23>0,G25>0),MIN(G17*H17,G23,0.5*G25),0) -> 0
E19: kW Savings
E21: Annual Operating Hours
E23: Incremental Measure Cost
E25: Total Project Cost
A27: Item 3
A28: Description | H28: $/kWh | I28: Subtotal
E29: Annual kWh Savings | H29: 0.08 | I29: =IF(AND(G29>0,G35>0,G37>0),MIN(G29*H29,G35,0.5*G37),0) -> 0
E31: kW Savings
E33: Annual Operating Hours
E35: Incremental Measure Cost
E37: Total Project Cost
A39: Item 4
A40: Description | H40: $/kWh | I40: Subtotal
E41: Annual kWh Savings | H41: 0.08 | I41: =IF(AND(G41>0,G47>0,G49>0),MIN(G41*H41,G47,0.5*G49),0) -> 0
E43: kW Savings
E45: Annual Operating Hours
E47: Incremental Measure Cost
E49: Total Project Cost
A51: Total Custom Incentives | I51: =I5+I17+I29+I41 -> 0
A53: Incremental measure cost (IMC) is the difference between the cost of an energy-efficient piece of equipment and a new
A54: standard-efficiency piece of equipment. The IMC of energy-efficient equipment installed before an old piece of equipment
A55: reaches the end of its life (such as lighting equipment) generally is equal to the total cost of the energy-efficient equipment,
A56: including labor. The IMC of energy-efficient equipment installed at or near the end of life of an old piece of equipment (such as
A57: chillers, motors, air-conditioning units) generally is equal to the difference in cost between the energy-efficient equipment and
A58: the new standard-efficiency piece of equipment, not including labor.
A59: The rebate will be shown as 100% of the Incremental Measure Cost or 50% of the Total Project Cost. All Custom measures subject to approval using the Utility Cost Test (UCT). Submit calculations and costs for assistance.
